Workbook

Sheet TOT-0616
B2: ANEXO VI al Memorandum D.T.E.E. N° 294 /2017
A4: ENTE NACIONAL REGULADOR
A5: DE LA ELECTRICIDAD
B7: SISTEMA DE TRANSPORTE DE ENERGÍA ELÉCTRICA POR DISTRIBUCIÓN TRONCAL
B9: TRANSNEA S.A.
B11: TOTAL DE PENALIZACIONES
B13: 2
B14: Desde el 01 al 30 de junio de 2016
B16: Sanciones duplicadas por tasa de falla > 4 Sal. x año/100km.
C18: 1.- | D18: LÍNEAS
D20: 1.1.- | E20: Equipamiento propio | I20: ='LI-06 (2)'!AA44 -> 238296.17
D21: 1.2.- | E21: Transportista Independiente D.P.E.C. | I21: ='LI-DPEC-06 (1)'!AA44 -> 159865.63
C23: 2.- | D23: CONEXIÓN
D25: 2.1.- | E25: Transformación
E26: 2.1.1.- | F26: Equipamiento propio | I26: ='T-06 (2)'!AC44 -> 55068.05
D28: 2.2.- | E28: Salidas
E29: 2.2.1.- | F29: Equipamiento propio | I29: ='SA-06 (1)'!V43 -> 32666.55
C31: 3.- | D31: SUPERVISIÓN
D32: 3.1.- | E32: Transportista Independiente D.P.E.C. | I32: ='SUP-DPEC'!I66 -> 8618.131566
F34: TOTAL | G34: =SUM(I20:I32) -> 494514.5316

Sheet LI-06 (1)
B2: =+'TOT-0616'!B2 -> ANEXO VI al Memorandum D.T.E.E. N° 294 /2017
A4: ENTE NACIONAL REGULADOR
A5: DE LA ELECTRICIDAD
F8: SISTEMA DE TRANSPORTE DE ENERGÍA ELÉCTRICA POR DISTRIBUCIÓN TRONCAL - TRANSNEA S.A.
F10: 1.- LÍNEAS
F12: 1.1.- Líneas propias
B14: =+'TOT-0616'!B14 -> Desde el 01 al 30 de junio de 2016
F16: $/100 km-h : LÍNEAS 220 kV | G16: 360.925
F17: $/100 km-h : LÍNEAS 132 kV | G17: 345.493 | K17: FACTOR DE PENALIZACIÓN K = | L17: =30*'TOT-0616'!B13 -> 60 | M17: =IF(L17=30," ",IF(L17=60,"Coeficiente duplicado por tasa de falla >4 Sal. x año/100 km.","REVISAR COEFICIENTE")) -> Coeficiente duplicado por tasa de falla >4 Sal. x año/100 km.
F18: $/100 km-h : LÍNEAS 66 kV | G18: 345.493
C19: 3 | D19: 4 | E19: 5 | F19: 6 | G19: 7 | H19: 8 | I19: 9 | J19: 10 | K19: 11 | L19: 12 | M19: 13 | N19: 14 | O19: 15 | P19: 16 | Q19: 17 | R19: 18 | S19: 19 | T19: 20 | U19: 21 | V19: 22 | W19: 23 | X19: 24 | Y19: 25 | Z19: 26 | AA19: 27
C20: N° | D20: INDISP | E20: ID EQUIPO | F20: LÍNEAS | G20: U [kV] | H20: Long. [km] | I20: $/h | J20: Salida | K20: Entrada | L20: Hs. Indisp. | M20: Minutos Indisp. | N20: Tipo Sal.(²) | O20: C.R. % | P20: PENALIZAC. PROGRAM. | Q20: REDUCC. PROGRAM. | R20: PENALIZACIÓN FORZADA Por Salida 1ras. 3 hs. hs. Restantes | U20: REDUCC. FORZADA Por Salida 1ras. 3 hs. hs. Restantes | X20: RESTANTE FORZADA | Y20: REDUCC. RESTANTE | Z20: Informó enTérm. | AA20: TOTAL PENALIZAC.
C23: 1 | D23: 261606 | E23: 748 | F23: STA. CATALINA - RESISTENCIA | G23: 132 | H23: 42 | I23: =IF(H23>25,H23,25)*IF(G23=220,$G$16,IF(G23=132,$G$17,$G$18))/100 -> 145.10706 | J23: 2016-06-01 | K23: 2016-06-30T23:59:59 | L23: =IF(F23="","",(K23-J23)*24) -> 719.9997222 | M23: =IF(F23="","",ROUND((K23-J23)*24*60,0)) -> 43200 | N23: P | O23: =IF(F23="","","--") -> -- | P23: =IF(N23="P",ROUND(M23/60,2)*I23*$L$17*0.01,"--") -> 62686.24992 | Q23: =IF(N23="RP",ROUND(M23/60,2)*I23*$L$17*0.01*O23/100,"--") -> -- | R23: =IF(N23="F",I23*$L$17,"--") -> -- | S23: =IF(AND(M23>10,N23="F"),I23*$L$17*IF(M23>180,3,ROUND(M23/60,2)),"--") -> -- | T23: =IF(AND(N23="F",M23>180),(ROUND(M23/60,2)-3)*I23*$L$17*0.1,"--") -> -- | U23: =IF(N23="R",I23*$L$17*O23/100,"--") -> -- | V23: =IF(AND(M23>10,N23="R"),I23*$L$17*O23/100*IF(M23>180,3,ROUND(M23/60,2)),"--") -> -- | W23: =IF(AND(N23="R",M23>180),(ROUND(M23/60,2)-3)*I23*$L$17*0.1*O23/100,"--") -> -- | X23: =IF(N23="RF",ROUND(M23/60,2)*I23*$L$17*0.1,"--") -> -- | Y23: =IF(N23="RR",ROUND(M23/60,2)*I23*$L$17*0.1*O23/100,"--") -> -- | Z23: SI | AA23: =IF(F23="","",SUM(P23:Y23)*IF(Z23="SI",1,2)) -> 62686.24992
C24: 2 | D24: 291181 | E24: 946 | F24: PASO DE LOS LIBRES - URUGUAYANA | G24: 132 | H24: 3.900000095 | I24: =IF(H24>25,H24,25)*IF(G24=220,$G$16,IF(G24=132,$G$17,$G$18))/100 -> 86.37325 | J24: 2016-06-01 | K24: 2016-06-08T14:22:00 | L24: =IF(F24="","",(K24-J24)*24) -> 182.3666667 | M24: =IF(F24="","",ROUND((K24-J24)*24*60,0)) -> 10942 | N24: RF | O24: =IF(F24="","","--") -> -- | P24: =IF(N24="P",ROUND(M24/60,2)*I24*$L$17*0.01,"--") -> -- | Q24: =IF(N24="RP",ROUND(M24/60,2)*I24*$L$17*0.01*O24/100,"--") -> -- | R24: =IF(N24="F",I24*$L$17,"--") -> -- | S24: =IF(AND(M24>10,N24="F"),I24*$L$17*IF(M24>180,3,ROUND(M24/60,2)),"--") -> -- | T24: =IF(AND(N24="F",M24>180),(ROUND(M24/60,2)-3)*I24*$L$17*0.1,"--") -> -- | U24: =IF(N24="R",I24*$L$17*O24/100,"--") -> -- | V24: =IF(AND(M24>10,N24="R"),I24*$L$17*O24/100*IF(M24>180,3,ROUND(M24/60,2)),"--") -> -- | W24: =IF(AND(N24="R",M24>180),(ROUND(M24/60,2)-3)*I24*$L$17*0.1*O24/100,"--") -> -- | X24: =IF(N24="RF",ROUND(M24/60,2)*I24*$L$17*0.1,"--") -> 94511.33762 | Y24: =IF(N24="RR",ROUND(M24/60,2)*I24*$L$17*0.1*O24/100,"--") -> -- | Z24: SI | AA24: =IF(F24="","",SUM(P24:Y24)*IF(Z24="SI",1,2)) -> 94511.33762
C25: 3 | D25: 303335 | E25: 739 | F25: BARRANQUERAS - RESISTENCIA 1 | G25: 132 | H25: 31.39999962 | I25: 108.4848007 | J25: 2016-06-01T08:05:00 | K25: 2016-06-01T10:50:00 | L25: 2.75 | M25: 165 | N25: P | O25: -- | P25: 178.9999211 | Q25: -- | R25: -- | S25: -- | T25: -- | U25: -- | V25: -- | W25: -- | X25: -- | Y25: -- | Z25: SI | AA25: 178.9999211
C26: 4 | D26: 303337 | E26: 4800 | F26: RESISTENCIA - BARRANQUERAS (RESIST. N.) | G26: 132 | H26: 12.60000038 | I26: 86.37325 | J26: 2016-06-03T07:06:00 | K26: 2016-06-03T15:05:00 | L26: 7.983333333 | M26: 479 | N26: P | O26: -- | P26: 413.555121 | Q26: -- | R26: -- | S26: -- | T26: -- | U26: -- | V26: -- | W26: -- | X26: -- | Y26: -- | Z26: SI | AA26: 413.555121
C27: 5 | D27: 303636 | E27: 741 | F27: CORR. CENTRO - STA. CANTALINA | G27: 132 | H27: 10.19999981 | I27: 86.37325 | J27: 2016-06-06T08:50:00 | K27: 2016-06-06T15:28:00 | L27: 6.633333333 | M27: 398 | N27: P | O27: -- | P27: 343.5927885 | Q27: -- | R27: -- | S27: -- | T27: -- | U27: -- | V27: -- | W27: -- | X27: -- | Y27: -- | Z27: SI | AA27: 343.5927885
C28: 6 | D28: 303637 | E28: 741 | F28: CORR. CENTRO - STA. CANTALINA | G28: 132 | H28: 10.19999981 | I28: 86.37325 | J28: 2016-06-07T07:47:00 | K28: 2016-06-07T13:02:00 | L28: 5.25 | M28: 315 | N28: P | O28: -- | P28: 272.0757375 | Q28: -- | R28: -- | S28: -- | T28: -- | U28: -- | V28: -- | W28: -- | X28: -- | Y28: -- | Z28: SI | AA28: 272.0757375
C29: 7 | D29: 303639 | E29: 5047 | F29: GRAN FORMOSA - CLORINDA | G29: 132 | H29: 103.5 | I29: 357.585255 | J29: 2016-06-08T07:49:00 | K29: 2016-06-08T12:28:00 | L29: 4.65 | M29: 279 | N29: P | O29: -- | P29: 997.6628614 | Q29: -- | R29: -- | S29: -- | T29: -- | U29: -- | V29: -- | W29: -- | X29: -- | Y29: -- | Z29: SI | AA29: 997.6628614
C30: 8 | D30: 303642 | E30: 5557 | F30: MANSILLA - RESISTENCIA 132 1 | G30: 132 | H30: 109.5 | I30: 378.314835 | J30: 2016-06-08T08:58:00 | K30: 2016-06-08T10:53:00 | L30: 1.916666667 | M30: 115 | N30: P | O30: -- | P30: 435.8186899 | Q30: -- | R30: -- | S30: -- | T30: -- | U30: -- | V30: -- | W30: -- | X30: -- | Y30: -- | Z30: SI | AA30: 435.8186899
C31: 9 | D31: 303643 | E31: 5047 | F31: GRAN FORMOSA - CLORINDA | G31: 132 | H31: 103.5 | I31: 357.585255 | J31: 2016-06-09T07:42:00 | K31: 2016-06-09T13:25:00 | L31: 5.716666667 | M31: 343 | N31: P | O31: -- | P31: 1227.232595 | Q31: -- | R31: -- | S31: -- | T31: -- | U31: -- | V31: -- | W31: -- | X31: -- | Y31: -- | Z31: SI | AA31: 1227.232595
C32: 10 | D32: 303751 | E32: 746 | F32: MONTE CASEROS - CHAJARI | G32: 132 | H32: 74.5 | I32: 257.392285 | J32: 2016-06-14T08:19:00 | K32: 2016-06-14T14:09:00 | L32: 5.833333333 | M32: 350 | N32: P | O32: -- | P32: 900.3582129 | Q32: -- | R32: -- | S32: -- | T32: -- | U32: -- | V32: -- | W32: -- | X32: -- | Y32: -- | Z32: SI | AA32: 900.3582129
C33: 11 | D33: 303753 | E33: 746 | F33: MONTE CASEROS - CHAJARI | G33: 132 | H33: 74.5 | I33: 257.392285 | J33: 2016-06-15T07:52:00 | K33: 2016-06-15T14:11:00 | L33: 6.316666667 | M33: 379 | N33: P | O33: -- | P33: 976.0315447 | Q33: -- | R33: -- | S33: -- | T33: -- | U33: -- | V33: -- | W33: -- | X33: -- | Y33: -- | Z33: SI | AA33: 976.0315447
C34: 12 | D34: 303754 | E34: 746 | F34: MONTE CASEROS - CHAJARI | G34: 132 | H34: 74.5 | I34: 257.392285 | J34: 2016-06-16T07:45:00 | K34: 2016-06-16T14:25:00 | L34: 6.666666667 | M34: 400 | N34: P | O34: -- | P34: 1030.083925 | Q34: -- | R34: -- | S34: -- | T34: -- | U34: -- | V34: -- | W34: -- | X34: -- | Y34: -- | Z34: SI | AA34: 1030.083925
C35: 13 | D35: 303755 | E35: 4317 | F35: PIRANE - IBARRETA | G35: 132 | H35: 91.80000305 | I35: 317.1625845 | J35: 2016-06-16T08:05:00 | K35: 2016-06-16T11:04:00 | L35: 2.983333333 | M35: 179 | N35: P | O35: -- | P35: 567.0867012 | Q35: -- | R35: -- | S35: -- | T35: -- | U35: -- | V35: -- | W35: -- | X35: -- | Y35: -- | Z35: SI | AA35: 567.0867012
C36: 14 | D36: 303760 | E36: 5044 | F36: GRAN FORMOSA - PIRANE 1 | G36: 132 | H36: 111.5999985 | I36: 385.5701827 | J36: 2016-06-19T22:35:00 | K36: 2016-06-19T22:45:00 | L36: 0.1666666667 | M36: 10 | N36: F | O36: -- | P36: -- | Q36: -- | R36: 23134.21096 | S36: -- | T36: -- | U36: -- | V36: -- | W36: -- | X36: -- | Y36: -- | Z36: SI | AA36: 23134.21096
C37: 15 | D37: 303987 | E37: 743 | F37: SALTO GRANDE AR - CHAJARI | G37: 132 | H37: 60.90000153 | I37: 210.4052423 | J37: 2016-06-23T08:31:00 | K37: 2016-06-23T13:28:00 | L37: 4.95 | M37: 297 | N37: P | O37: -- | P37: 624.9035695 | Q37: -- | R37: -- | S37: -- | T37: -- | U37: -- | V37: -- | W37: -- | X37: -- | Y37: -- | Z37: SI | AA37: 624.9035695
C38: 16 | D38: 303989 | E38: 743 | F38: SALTO GRANDE AR - CHAJARI | G38: 132 | H38: 60.90000153 | I38: 210.4052423 | J38: 2016-06-24T08:15:00 | K38: 2016-06-24T15:18:00 | L38: 7.05 | M38: 423 | N38: P | O38: -- | P38: 890.0141748 | Q38: -- | R38: -- | S38: -- | T38: -- | U38: -- | V38: -- | W38: -- | X38: -- | Y38: -- | Z38: SI | AA38: 890.0141748
C39: 17 | D39: 303990 | E39: 742 | F39: RESISTENCIA - CORR. CENTRO | G39: 132 | H39: 33 | I39: 114.01269 | J39: 2016-06-24T09:05:00 | K39: 2016-06-24T09:35:00 | L39: 0.5000000001 | M39: 30 | N39: F | O39: -- | P39: -- | Q39: -- | R39: 6840.7614 | S39: 3420.3807 | T39: -- | U39: -- | V39: -- | W39: -- | X39: -- | Y39: -- | Z39: SI | AA39: 10261.1421
C40: 18 | D40: 304244 | E40: 743 | F40: SALTO GRANDE AR - CHAJARI | G40: 132 | H40: 60.90000153 | I40: =IF(H40>25,H40,25)*IF(G40=220,$G$16,IF(G40=132,$G$17,$G$18))/100 -> 210.4052423 | J40: 2016-06-28T21:15:00 | K40: 2016-06-28T21:23:00 | L40: =IF(F40="","",(K40-J40)*24) -> 0.1333333334 | M40: =IF(F40="","",ROUND((K40-J40)*24*60,0)) -> 8 | N40: F | O40: =IF(F40="","","--") -> -- | P40: =IF(N40="P",ROUND(M40/60,2)*I40*$L$17*0.01,"--") -> -- | Q40: =IF(N40="RP",ROUND(M40/60,2)*I40*$L$17*0.01*O40/100,"--") -> -- | R40: =IF(N40="F",I40*$L$17,"--") -> 12624.31454 | S40: =IF(AND(M40>10,N40="F"),I40*$L$17*IF(M40>180,3,ROUND(M40/60,2)),"--") -> -- | T40: =IF(AND(N40="F",M40>180),(ROUND(M40/60,2)-3)*I40*$L$17*0.1,"--") -> -- | U40: =IF(N40="R",I40*$L$17*O40/100,"--") -> -- | V40: =IF(AND(M40>10,N40="R"),I40*$L$17*O40/100*IF(M40>180,3,ROUND(M40/60,2)),"--") -> -- | W40: =IF(AND(N40="R",M40>180),(ROUND(M40/60,2)-3)*I40*$L$17*0.1*O40/100,"--") -> -- | X40: =IF(N40="RF",ROUND(M40/60,2)*I40*$L$17*0.1,"--") -> -- | Y40: =IF(N40="RR",ROUND(M40/60,2)*I40*$L$17*0.1*O40/100,"--") -> -- | Z40: SI | AA40: 12624.31454
C41: 19 | D41: 304263 | E41: 5394 | F41: SANTA CATALINA -BELLA VISTA 132 1 | G41: 132 | H41: 121 | I41: =IF(H41>25,H41,25)*IF(G41=220,$G$16,IF(G41=132,$G$17,$G$18))/100 -> 418.04653 | J41: 2016-06-30T01:09:00 | K41: 2016-06-30T01:19:00 | L41: =IF(F41="","",(K41-J41)*24) -> 0.1666666665 | M41: =IF(F41="","",ROUND((K41-J41)*24*60,0)) -> 10 | N41: F | O41: =IF(F41="","","--") -> -- | P41: =IF(N41="P",ROUND(M41/60,2)*I41*$L$17*0.01,"--") -> -- | Q41: =IF(N41="RP",ROUND(M41/60,2)*I41*$L$17*0.01*O41/100,"--") -> -- | R41: =IF(N41="F",I41*$L$17,"--") -> 25082.7918 | S41: =IF(AND(M41>10,N41="F"),I41*$L$17*IF(M41>180,3,ROUND(M41/60,2)),"--") -> -- | T41: =IF(AND(N41="F",M41>180),(ROUND(M41/60,2)-3)*I41*$L$17*0.1,"--") -> -- | U41: =IF(N41="R",I41*$L$17*O41/100,"--") -> -- | V41: =IF(AND(M41>10,N41="R"),I41*$L$17*O41/100*IF(M41>180,3,ROUND(M41/60,2)),"--") -> -- | W41: =IF(AND(N41="R",M41>180),(ROUND(M41/60,2)-3)*I41*$L$17*0.1*O41/100,"--") -> -- | X41: =IF(N41="RF",ROUND(M41/60,2)*I41*$L$17*0.1,"--") -> -- | Y41: =IF(N41="RR",ROUND(M41/60,2)*I41*$L$17*0.1*O41/100,"--") -> -- | Z41: SI | AA41: 25082.7918
I42: =IF(H42>25,H42,25)*IF(G42=220,$G$16,IF(G42=132,$G$17,$G$18))/100 -> 86.37325 | L42: =IF(F42="","",(K42-J42)*24) ->  | M42: =IF(F42="","",ROUND((K42-J42)*24*60,0)) ->  | O42: =IF(F42="","","--") ->  | P42: =IF(N42="P",ROUND(M42/60,2)*I42*$L$17*0.01,"--") -> -- | Q42: =IF(N42="RP",ROUND(M42/60,2)*I42*$L$17*0.01*O42/100,"--") -> -- | R42: =IF(N42="F",I42*$L$17,"--") -> -- | S42: =IF(AND(M42>10,N42="F"),I42*$L$17*IF(M42>180,3,ROUND(M42/60,2)),"--") -> -- | T42: =IF(AND(N42="F",M42>180),(ROUND(M42/60,2)-3)*I42*$L$17*0.1,"--") -> -- | U42: =IF(N42="R",I42*$L$17*O42/100,"--") -> -- | V42: =IF(AND(M42>10,N42="R"),I42*$L$17*O42/100*IF(M42>180,3,ROUND(M42/60,2)),"--") -> -- | W42: =IF(AND(N42="R",M42>180),(ROUND(M42/60,2)-3)*I42*$L$17*0.1*O42/100,"--") -> -- | X42: =IF(N42="RF",ROUND(M42/60,2)*I42*$L$17*0.1,"--") -> -- | Y42: =IF(N42="RR",ROUND(M42/60,2)*I42*$L$17*0.1*O42/100,"--") -> -- | Z42: =IF(F42="","","SI") -> 
C44: (²) | D44: P - PROGRAMADA ; F - FORZADA ; RF - RESTANTE FORZADA | P44: =SUM(P21:P43) -> 71543.66576 | Q44: =SUM(Q21:Q43) -> 0 | R44: =SUM(R21:R43) -> 67682.0787 | S44: 3420.3807 | T44: 0 | U44: 0 | V44: 0 | W44: 0 | X44: 94511.33762 | Y44: 0 | AA44: =ROUND(SUM(AA21:AA43),2) -> 237157.46

Sheet LI-06 (2)
B2: =+'TOT-0616'!B2 -> ANEXO VI al Memorandum D.T.E.E. N° 294 /2017
A4: ENTE NACIONAL REGULADOR
A5: DE LA ELECTRICIDAD
F8: SISTEMA DE TRANSPORTE DE ENERGÍA ELÉCTRICA POR DISTRIBUCIÓN TRONCAL - TRANSNEA S.A.
F10: 1.- LÍNEAS
F12: 1.1.- Líneas propias
B14: =+'TOT-0616'!B14 -> Desde el 01 al 30 de junio de 2016
F16: $/100 km-h : LÍNEAS 220 kV | G16: 360.925
F17: $/100 km-h : LÍNEAS 132 kV | G17: 345.493 | K17: FACTOR DE PENALIZACIÓN K = | L17: =30*'TOT-0616'!B13 -> 60 | M17: =IF(L17=30," ",IF(L17=60,"Coeficiente duplicado por tasa de falla >4 Sal. x año/100 km.","REVISAR COEFICIENTE")) -> Coeficiente duplicado por tasa de falla >4 Sal. x año/100 km.
F18: $/100 km-h : LÍNEAS 66 kV | G18: 345.493
C19: 3 | D19: 4 | E19: 5 | F19: 6 | G19: 7 | H19: 8 | I19: 9 | J19: 10 | K19: 11 | L19: 12 | M19: 13 | N19: 14 | O19: 15 | P19: 16 | Q19: 17 | R19: 18 | S19: 19 | T19: 20 | U19: 21 | V19: 22 | W19: 23 | X19: 24 | Y19: 25 | Z19: 26 | AA19: 27
C20: N° | D20: INDISP | E20: ID EQUIPO | F20: LÍNEAS | G20: U [kV] | H20: Long. [km] | I20: $/h | J20: Salida | K20: Entrada | L20: Hs. Indisp. | M20: Minutos Indisp. | N20: Tipo Sal.(²) | O20: C.R. % | P20: PENALIZAC. PROGRAM. | Q20: REDUCC. PROGRAM. | R20: PENALIZACIÓN FORZADA Por Salida 1ras. 3 hs. hs. Restantes | U20: REDUCC. FORZADA Por Salida 1ras. 3 hs. hs. Restantes | X20: RESTANTE FORZADA | Y20: REDUCC. RESTANTE | Z20: Informó enTérm. | AA20: TOTAL PENALIZAC.
AA21: ='LI-06 (1)'!AA44 -> 237157.46
C23: 20 | D23: 304280 | E23: 743 | F23: SALTO GRANDE AR - CHAJARI | G23: 132 | H23: 60.90000153 | I23: =IF(H23>25,H23,25)*IF(G23=220,$G$16,IF(G23=132,$G$17,$G$18))/100 -> 210.4052423 | J23: 2016-06-30T08:00:00 | K23: 2016-06-30T17:01:00 | L23: =IF(F23="","",(K23-J23)*24) -> 9.016666667 | M23: =IF(F23="","",ROUND((K23-J23)*24*60,0)) -> 541 | N23: P | O23: =IF(F23="","","--") -> -- | P23: =IF(N23="P",ROUND(M23/60,2)*I23*$L$17*0.01,"--") -> 1138.713171 | Q23: =IF(N23="RP",ROUND(M23/60,2)*I23*$L$17*0.01*O23/100,"--") -> -- | R23: =IF(N23="F",I23*$L$17,"--") -> -- | S23: =IF(AND(M23>10,N23="F"),I23*$L$17*IF(M23>180,3,ROUND(M23/60,2)),"--") -> -- | T23: =IF(AND(N23="F",M23>180),(ROUND(M23/60,2)-3)*I23*$L$17*0.1,"--") -> -- | U23: =IF(N23="R",I23*$L$17*O23/100,"--") -> -- | V23: =IF(AND(M23>10,N23="R"),I23*$L$17*O23/100*IF(M23>180,3,ROUND(M23/60,2)),"--") -> -- | W23: =IF(AND(N23="R",M23>180),(ROUND(M23/60,2)-3)*I23*$L$17*0.1*O23/100,"--") -> -- | X23: =IF(N23="RF",ROUND(M23/60,2)*I23*$L$17*0.1,"--") -> -- | Y23: =IF(N23="RR",ROUND(M23/60,2)*I23*$L$17*0.1*O23/100,"--") -> -- | Z23: SI | AA23: =IF(F23="","",SUM(P23:Y23)*IF(Z23="SI",1,2)) -> 1138.713171
I24: =IF(H24>25,H24,25)*IF(G24=220,$G$16,IF(G24=132,$G$17,$G$18))/100 -> 86.37325 | L24: =IF(F24="","",(K24-J24)*24) ->  | M24: =IF(F24="","",ROUND((K24-J24)*24*60,0)) ->  | O24: =IF(F24="","","--") ->  | P24: =IF(N24="P",ROUND(M24/60,2)*I24*$L$17*0.01,"--") -> -- | Q24: =IF(N24="RP",ROUND(M24/60,2)*I24*$L$17*0.01*O24/100,"--") -> -- | R24: =IF(N24="F",I24*$L$17,"--") -> -- | S24: =IF(AND(M24>10,N24="F"),I24*$L$17*IF(M24>180,3,ROUND(M24/60,2)),"--") -> -- | T24: =IF(AND(N24="F",M24>180),(ROUND(M24/60,2)-3)*I24*$L$17*0.1,"--") -> -- | U24: =IF(N24="R",I24*$L$17*O24/100,"--") -> -- | V24: =IF(AND(M24>10,N24="R"),I24*$L$17*O24/100*IF(M24>180,3,ROUND(M24/60,2)),"--") -> -- | W24: =IF(AND(N24="R",M24>180),(ROUND(M24/60,2)-3)*I24*$L$17*0.1*O24/100,"--") -> -- | X24: =IF(N24="RF",ROUND(M24/60,2)*I24*$L$17*0.1,"--") -> -- | Y24: =IF(N24="RR",ROUND(M24/60,2)*I24*$L$17*0.1*O24/100,"--") -> -- | Z24: =IF(F24="","","SI") ->  | AA24: =IF(F24="","",SUM(P24:Y24)*IF(Z24="SI",1,2)) -> 
I25: 86.37325 | P25: -- | Q25: -- | R25: -- | S25: -- | T25: -- | U25: -- | V25: -- | W25: -- | X25: -- | Y25: --
I26: 86.37325 | P26: -- | Q26: -- | R26: -- | S26: -- | T26: -- | U26: -- | V26: -- | W26: -- | X26: -- | Y26: --
I27: 86.37325 | P27: -- | Q27: -- | R27: -- | S27: -- | T27: -- | U27: -- | V27: -- | W27: -- | X27: -- | Y27: --
I28: 86.37325 | P28: -- | Q28: -- | R28: -- | S28: -- | T28: -- | U28: -- | V28: -- | W28: -- | X28: -- | Y28: --
I29: 86.37325 | P29: -- | Q29: -- | R29: -- | S29: -- | T29: -- | U29: -- | V29: -- | W29: -- | X29: -- | Y29: --
I30: 86.37325 | P30: -- | Q30: -- | R30: -- | S30: -- | T30: -- | U30: -- | V30: -- | W30: -- | X30: -- | Y30: --
I31: 86.37325 | P31: -- | Q31: -- | R31: -- | S31: -- | T31: -- | U31: -- | V31: -- | W31: -- | X31: -- | Y31: --
I32: 86.37325 | P32: -- | Q32: -- | R32: -- | S32: -- | T32: -- | U32: -- | V32: -- | W32: -- | X32: -- | Y32: --
I33: 86.37325 | P33: -- | Q33: -- | R33: -- | S33: -- | T33: -- | U33: -- | V33: -- | W33: -- | X33: -- | Y33: --
I34: 86.37325 | P34: -- | Q34: -- | R34: -- | S34: -- | T34: -- | U34: -- | V34: -- | W34: -- | X34: -- | Y34: --
I35: 86.37325 | P35: -- | Q35: -- | R35: -- | S35: -- | T35: -- | U35: -- | V35: -- | W35: -- | X35: -- | Y35: --
I36: 86.37325 | P36: -- | Q36: -- | R36: -- | S36: -- | T36: -- | U36: -- | V36: -- | W36: -- | X36: -- | Y36: --
I37: 86.37325 | P37: -- | Q37: -- | R37: -- | S37: -- | T37: -- | U37: -- | V37: -- | W37: -- | X37: -- | Y37: --
I38: 86.37325 | P38: -- | Q38: -- | R38: -- | S38: -- | T38: -- | U38: -- | V38: -- | W38: -- | X38: -- | Y38: --
I39: 86.37325 | P39: -- | Q39: -- | R39: -- | S39: -- | T39: -- | U39: -- | V39: -- | W39: -- | X39: -- | Y39: --
I40: =IF(H40>25,H40,25)*IF(G40=220,$G$16,IF(G40=132,$G$17,$G$18))/100 -> 86.37325 | L40: =IF(F40="","",(K40-J40)*24) ->  | M40: =IF(F40="","",ROUND((K40-J40)*24*60,0)) ->  | O40: =IF(F40="","","--") ->  | P40: =IF(N40="P",ROUND(M40/60,2)*I40*$L$17*0.01,"--") -> -- | Q40: =IF(N40="RP",ROUND(M40/60,2)*I40*$L$17*0.01*O40/100,"--") -> -- | R40: =IF(N40="F",I40*$L$17,"--") -> -- | S40: =IF(AND(M40>10,N40="F"),I40*$L$17*IF(M40>180,3,ROUND(M40/60,2)),"--") -> -- | T40: =IF(AND(N40="F",M40>180),(ROUND(M40/60,2)-3)*I40*$L$17*0.1,"--") -> -- | U40: =IF(N40="R",I40*$L$17*O40/100,"--") -> -- | V40: =IF(AND(M40>10,N40="R"),I40*$L$17*O40/100*IF(M40>180,3,ROUND(M40/60,2)),"--") -> -- | W40: =IF(AND(N40="R",M40>180),(ROUND(M40/60,2)-3)*I40*$L$17*0.1*O40/100,"--") -> -- | X40: =IF(N40="RF",ROUND(M40/60,2)*I40*$L$17*0.1,"--") -> -- | Y40: =IF(N40="RR",ROUND(M40/60,2)*I40*$L$17*0.1*O40/100,"--") -> -- | Z40: =IF(F40="","","SI") -> 
I41: =IF(H41>25,H41,25)*IF(G41=220,$G$16,IF(G41=132,$G$17,$G$18))/100 -> 86.37325 | L41: =IF(F41="","",(K41-J41)*24) ->  | M41: =IF(F41="","",ROUND((K41-J41)*24*60,0)) ->  | O41: =IF(F41="","","--") ->  | P41: =IF(N41="P",ROUND(M41/60,2)*I41*$L$17*0.01,"--") -> -- | Q41: =IF(N41="RP",ROUND(M41/60,2)*I41*$L$17*0.01*O41/100,"--") -> -- | R41: =IF(N41="F",I41*$L$17,"--") -> -- | S41: =IF(AND(M41>10,N41="F"),I41*$L$17*IF(M41>180,3,ROUND(M41/60,2)),"--") -> -- | T41: =IF(AND(N41="F",M41>180),(ROUND(M41/60,2)-3)*I41*$L$17*0.1,"--") -> -- | U41: =IF(N41="R",I41*$L$17*O41/100,"--") -> -- | V41: =IF(AND(M41>10,N41="R"),I41*$L$17*O41/100*IF(M41>180,3,ROUND(M41/60,2)),"--") -> -- | W41: =IF(AND(N41="R",M41>180),(ROUND(M41/60,2)-3)*I41*$L$17*0.1*O41/100,"--") -> -- | X41: =IF(N41="RF",ROUND(M41/60,2)*I41*$L$17*0.1,"--") -> -- | Y41: =IF(N41="RR",ROUND(M41/60,2)*I41*$L$17*0.1*O41/100,"--") -> -- | Z41: =IF(F41="","","SI") -> 
I42: =IF(H42>25,H42,25)*IF(G42=220,$G$16,IF(G42=132,$G$17,$G$18))/100 -> 86.37325 | L42: =IF(F42="","",(K42-J42)*24) ->  | M42: =IF(F42="","",ROUND((K42-J42)*24*60,0)) ->  | O42: =IF(F42="","","--") ->  | P42: =IF(N42="P",ROUND(M42/60,2)*I42*$L$17*0.01,"--") -> -- | Q42: =IF(N42="RP",ROUND(M42/60,2)*I42*$L$17*0.01*O42/100,"--") -> -- | R42: =IF(N42="F",I42*$L$17,"--") -> -- | S42: =IF(AND(M42>10,N42="F"),I42*$L$17*IF(M42>180,3,ROUND(M42/60,2)),"--") -> -- | T42: =IF(AND(N42="F",M42>180),(ROUND(M42/60,2)-3)*I42*$L$17*0.1,"--") -> -- | U42: =IF(N42="R",I42*$L$17*O42/100,"--") -> -- | V42: =IF(AND(M42>10,N42="R"),I42*$L$17*O42/100*IF(M42>180,3,ROUND(M42/60,2)),"--") -> -- | W42: =IF(AND(N42="R",M42>180),(ROUND(M42/60,2)-3)*I42*$L$17*0.1*O42/100,"--") -> -- | X42: =IF(N42="RF",ROUND(M42/60,2)*I42*$L$17*0.1,"--") -> -- | Y42: =IF(N42="RR",ROUND(M42/60,2)*I42*$L$17*0.1*O42/100,"--") -> -- | Z42: =IF(F42="","","SI") -> 
C44: (²) | D44: P - PROGRAMADA | P44: =SUM(P21:P43) -> 1138.713171 | Q44: =SUM(Q21:Q43) -> 0 | R44: =SUM(R21:R43) -> 0 | S44: 0 | T44: 0 | U44: 0 | V44: 0 | W44: 0 | X44: 0 | Y44: 0 | AA44: =ROUND(SUM(AA21:AA43),2) -> 238296.17

Sheet LI-DPEC-06 (1)
B2: =+'TOT-0616'!B2 -> ANEXO VI al Memorandum D.T.E.E. N° 294 /2017
A4: ENTE NACIONAL REGULADOR
A5: DE LA ELECTRICIDAD
F8: SISTEMA DE TRANSPORTE DE ENERGÍA ELÉCTRICA POR DISTRIBUCIÓN TRONCAL - TRANSNEA S.A.
F10: 1.2.-Transportista Independiente - Dirección Provincial de Energía de Corrientes (D.P.E.C.)
B12: =+'TOT-0616'!B14 -> Desde el 01 al 30 de junio de 2016
F15: $/100 km-h : LÍNEAS 220 kV | G15: -
F16: $/100 km-h : LÍNEAS 132 kV | G16: 145.147 | K16: FACTOR DE PENALIZACIÓN K = | L16: =30*'TOT-0616'!B13 -> 60 | M16: =IF(L16=30," ",IF(L16=60,"Coeficiente duplicado por tasa de falla >4 Sal. x año/100 km.","REVISAR COEFICIENTE")) -> Coeficiente duplicado por tasa de falla >4 Sal. x año/100 km.
F17: $/100 km-h : LÍNEAS 66 kV | G17: -
C19: 3 | D19: 4 | E19: 5 | F19: 6 | G19: 7 | H19: 8 | I19: 9 | J19: 10 | K19: 11 | L19: 12 | M19: 13 | N19: 14 | O19: 15 | P19: 16 | Q19: 17 | R19: 18 | S19: 19 | T19: 20 | U19: 21 | V19: 22 | W19: 23 | X19: 24 | Y19: 25 | Z19: 26 | AA19: 27
C20: N° | D20: INDISP | E20: ID EQUIPO | F20: LÍNEAS | G20: U [kV] | H20: Long. [km] | I20: $/h | J20: Salida | K20: Entrada | L20: Hs. Indisp. | M20: Minutos Indisp. | N20: Tipo Sal.(²) | O20: C.R. % | P20: PENALIZAC. PROGRAM. | Q20: REDUCC. PROGRAM. | R20: PENALIZACIÓN FORZADA Por Salida 1ras. 3 hs. hs. Restantes | U20: REDUCC. FORZADA Por Salida 1ras. 3 hs. hs. Restantes | X20: RESTANTE FORZADA | Y20: REDUCC. RESTANTE | Z20: Informó enTérm. | AA20: TOTAL PENALIZAC.
C23: 47 | D23: 303677 | E23: 1001 | F23: PASO DE LOS LIBRES - MONTE CASEROS | G23: 132 | H23: 101 | I23: =IF(H23>25,H23,25)*IF(G23=220,$G$15,IF(G23=132,$G$16,$G$17))/100 -> 146.59847 | J23: 2016-06-12T02:47:00 | K23: 2016-06-12T16:45:00 | L23: =IF(F23="","",(K23-J23)*24) -> 13.96666667 | M23: =IF(F23="","",ROUND((K23-J23)*24*60,0)) -> 838 | N23: F | O23: =IF(F23="","","--") -> -- | P23: =IF(N23="P",ROUND(M23/60,2)*I23*$L$16*0.01,"--") -> -- | Q23: =IF(N23="RP",ROUND(M23/60,2)*I23*$L$16*0.01*O23/100,"--") -> -- | R23: =IF(N23="F",I23*$L$16,"--") -> 8795.9082 | S23: =IF(AND(M23>10,N23="F"),I23*$L$16*IF(M23>180,3,ROUND(M23/60,2)),"--") -> 26387.7246 | T23: =IF(AND(N23="F",M23>180),(ROUND(M23/60,2)-3)*I23*$L$16*0.1,"--") -> 9649.111295 | U23: =IF(N23="R",I23*$L$16*O23/100,"--") -> -- | V23: =IF(AND(M23>10,N23="R"),I23*$L$16*O23/100*IF(M23>180,3,ROUND(M23/60,2)),"--") -> -- | W23: =IF(AND(N23="R",M23>180),(ROUND(M23/60,2)-3)*I23*$L$16*0.1*O23/100,"--") -> -- | X23: =IF(N23="RF",ROUND(M23/60,2)*I23*$L$16*0.1,"--") -> -- | Y23: =IF(N23="RR",ROUND(M23/60,2)*I23*$L$16*0.1*O23/100,"--") -> -- | Z23: SI | AA23: =IF(F23="","",SUM(P23:Y23)*IF(Z23="SI",1,2)) -> 44832.7441
C24: 48 | D24: 303748 | E24: 1001 | F24: PASO DE LOS LIBRES - MONTE CASEROS | G24: 132 | H24: 101 | I24: =IF(H24>25,H24,25)*IF(G24=220,$G$15,IF(G24=132,$G$16,$G$17))/100 -> 146.59847 | J24: 2016-06-13T06:30:00 | K24: 2016-06-13T12:44:00 | L24: 6.233333333 | M24: =IF(F24="","",ROUND((K24-J24)*24*60,0)) -> 374 | N24: F | O24: -- | P24: -- | Q24: -- | R24: 8795.9082 | S24: 26387.7246 | T24: 2841.078349 | U24: -- | V24: -- | W24: -- | X24: =IF(N24="RF",ROUND(M24/60,2)*I24*$L$16*0.1,"--") -> -- | Y24: =IF(N24="RR",ROUND(M24/60,2)*I24*$L$16*0.1*O24/100,"--") -> -- | Z24: SI | AA24: =IF(F24="","",SUM(P24:Y24)*IF(Z24="SI",1,2)) -> 38024.71115
C25: 49 | D25: 303756 | E25: 1001 | F25: PASO DE LOS LIBRES - MONTE CASEROS | G25: 132 | H25: 101 | I25: 146.59847 | J25: 2016-06-18T02:05:00 | K25: 2016-06-18T02:15:00 | L25: 0.1666666667 | M25: 10 | N25: F | O25: -- | P25: -- | Q25: -- | R25: 8795.9082 | S25: -- | T25: -- | U25: -- | V25: -- | W25: -- | X25: -- | Y25: -- | Z25: SI | AA25: 8795.9082
C26: 50 | D26: 303758 | E26: 1001 | F26: PASO DE LOS LIBRES - MONTE CASEROS | G26: 132 | H26: 101 | I26: 146.59847 | J26: 2016-06-18T03:42:00 | K26: 2016-06-18T12:15:00 | L26: 8.55 | M26: 513 | N26: F | O26: -- | P26: -- | Q26: -- | R26: 8795.9082 | S26: 26387.7246 | T26: 4881.729051 | U26: -- | V26: -- | W26: -- | X26: -- | Y26: -- | Z26: SI | AA26: 40065.36185
C27: 51 | D27: 303981 | E27: 1001 | F27: PASO DE LOS LIBRES - MONTE CASEROS | G27: 132 | H27: 101 | I27: 146.59847 | J27: 2016-06-22T05:55:00 | K27: 2016-06-22T06:02:00 | L27: 0.1166666665 | M27: 7 | N27: F | O27: -- | P27: -- | Q27: -- | R27: 8795.9082 | S27: -- | T27: -- | U27: -- | V27: -- | W27: -- | X27: -- | Y27: -- | Z27: SI | AA27: 8795.9082
C28: 52 | D28: 304240 | E28: 1001 | F28: PASO DE LOS LIBRES - MONTE CASEROS | G28: 132 | H28: 101 | I28: 146.59847 | J28: 2016-06-27T22:54:00 | K28: 2016-06-27T23:04:00 | L28: 0.1666666665 | M28: 10 | N28: F | O28: -- | P28: -- | Q28: -- | R28: 8795.9082 | S28: -- | T28: -- | U28: -- | V28: -- | W28: -- | X28: -- | Y28: -- | Z28: SI | AA28: 8795.9082
C29: 53 | D29: 304261 | E29: 1001 | F29: PASO DE LOS LIBRES - MONTE CASEROS | G29: 132 | H29: 101 | I29: 146.59847 | J29: 2016-06-29T06:38:00 | K29: 2016-06-29T06:50:00 | L29: 0.2 | M29: 12 | N29: F | O29: -- | P29: -- | Q29: -- | R29: 8795.9082 | S29: 1759.18164 | T29: -- | U29: -- | V29: -- | W29: -- | X29: -- | Y29: -- | Z29: SI | AA29: 10555.08984
P30: -- | Q30: -- | R30: -- | S30: -- | T30: -- | U30: -- | V30: -- | W30: -- | X30: -- | Y30: -- | Z30: =IF(F30="","","SI") -> 
P31: -- | Q31: -- | R31: -- | S31: -- | T31: -- | U31: -- | V31: -- | W31: -- | X31: -- | Y31: --
P32: -- | Q32: -- | R32: -- | S32: -- | T32: -- | U32: -- | V32: -- | W32: -- | X32: -- | Y32: --
P33: -- | Q33: -- | R33: -- | S33: -- | T33: -- | U33: -- | V33: -- | W33: -- | X33: -- | Y33: --
P34: -- | Q34: -- | R34: -- | S34: -- | T34: -- | U34: -- | V34: -- | W34: -- | X34: -- | Y34: --
P35: -- | Q35: -- | R35: -- | S35: -- | T35: -- | U35: -- | V35: -- | W35: -- | X35: -- | Y35: --
P36: -- | Q36: -- | R36: -- | S36: -- | T36: -- | U36: -- | V36: -- | W36: -- | X36: -- | Y36: --
P37: -- | Q37: -- | R37: -- | S37: -- | T37: -- | U37: -- | V37: -- | W37: -- | X37: -- | Y37: --
P38: -- | Q38: -- | R38: -- | S38: -- | T38: -- | U38: -- | V38: -- | W38: -- | X38: -- | Y38: --
P39: -- | Q39: -- | R39: -- | S39: -- | T39: -- | U39: -- | V39: -- | W39: -- | X39: -- | Y39: --
I40: =IF(H40>25,H40,25)*IF(G40=220,$G$15,IF(G40=132,$G$16,$G$17))/100 ->  | M40: =IF(F40="","",ROUND((K40-J40)*24*60,0)) ->  | P40: -- | Q40: -- | R40: -- | S40: -- | T40: -- | U40: -- | V40: -- | W40: -- | X40: =IF(N40="RF",ROUND(M40/60,2)*I40*$L$16*0.1,"--") -> -- | Y40: =IF(N40="RR",ROUND(M40/60,2)*I40*$L$16*0.1*O40/100,"--") -> --
I41: =IF(H41>25,H41,25)*IF(G41=220,$G$15,IF(G41=132,$G$16,$G$17))/100 ->  | M41: =IF(F41="","",ROUND((K41-J41)*24*60,0)) ->  | P41: -- | Q41: -- | R41: -- | S41: -- | T41: -- | U41: -- | V41: -- | W41: -- | X41: =IF(N41="RF",ROUND(M41/60,2)*I41*$L$16*0.1,"--") -> -- | Y41: =IF(N41="RR",ROUND(M41/60,2)*I41*$L$16*0.1*O41/100,"--") -> --
I42: =IF(H42>25,H42,25)*IF(G42=220,$G$15,IF(G42=132,$G$16,$G$17))/100 ->  | M42: =IF(F42="","",ROUND((K42-J42)*24*60,0)) ->  | P42: -- | Q42: -- | R42: -- | S42: -- | T42: -- | U42: -- | V42: -- | W42: -- | X42: =IF(N42="RF",ROUND(M42/60,2)*I42*$L$16*0.1,"--") -> -- | Y42: =IF(N42="RR",ROUND(M42/60,2)*I42*$L$16*0.1*O42/100,"--") -> --
C44: (²) | D44: F - FORZADA | P44: =SUM(P21:P43) -> 0 | Q44: 0 | R44: 61571.3574 | S44: 80922.35544 | T44: 17371.9187 | U44: 0 | V44: 0 | W44: 0 | X44: 0 | Y44: 0 | AA44: =ROUND(SUM(AA21:AA43),2) -> 159865.63

Sheet T-06 (1)
B2: =+'TOT-0616'!B2 -> ANEXO VI al Memorandum D.T.E.E. N° 294 /2017
A4: ENTE NACIONAL REGULADOR
A5: DE LA ELECTRICIDAD
F8: SISTEMA DE TRANSPORTE DE ENERGÍA ELÉCTRICA POR DISTRIBUCIÓN TRONCAL - TRANSNEA S.A.
F10: 2.- CONEXIÓN
F12: 2.1.- Transformación
B14: =+'TOT-0616'!B14 -> Desde el 01 al 30 de junio de 2016
F16: Por Transformador [$ / h - MVA] = | I16: 1.235
F17: Coeficiente de penalización por salida forzada = | I17: =30*'TOT-0616'!B13 -> 60 | K17: =IF(I17=30," ",IF(I17=60," Coeficiente duplicado por tasa de falla >4 Sal. x año/100 km."," REVISAR COEFICIENTE")) -> Coeficiente duplicado por tasa de falla >4 Sal. x año/100 km.
C18: 3 | D18: 4 | E18: 5 | F18: 6 | G18: 7 | H18: 8 | I18: 9 | J18: 10 | K18: 11 | L18: 12 | M18: 13 | N18: 14 | O18: 15 | P18: 16 | Q18: 17 | R18: 18 | S18: 19 | T18: 20 | U18: 21 | V18: 22 | W18: 23 | X18: 24 | Y18: 25 | Z18: 26 | AA18: 27 | AB18: 28 | AC18: 29
C19: N° | D19: INDISP | E19: ID EQUIPO | F19: ESTACIÓN TRANSFORMADORA | G19: EQUIPO | H19: POT. [MVA] | I19: U [kV] | J19: $/h | K19: Salida | L19: Entrada | M19: Hs. Indisp. | N19: Mtos. Indisp. | O19: Tipo Sal.(²) | P19: AUT. | Q19: C.R. % | R19: E.N.S. | S19: K (P;ENS) | T19: PENALIZ. PROGRAM. | U19: REDUCC. PROGRAM. | V19: PENALIZACIÓN FORZADA Por Salida hs. Restantes | X19: REDUCC. FORZADA Por Salida hs. Restantes | Z19: RESTANTE FORZADA | AA19: REDUCC. RESTANTE | AB19: Informó enTérm. | AC19: TOTAL PENALIZAC.
C21: 21 | D21: 303245 | E21: 754 | F21: BARRANQUERAS | G21: TRAFO 1 | H21: 20 | I21: 33/13,2 | J21: =H21*$I$16 -> 24.7 | K21: 2016-06-01 | L21: 2016-06-03T14:20:00 | M21: =IF(F21="","",(L21-K21)*24) -> 62.33333333 | N21: =IF(F21="","",ROUND((L21-K21)*24*60,0)) -> 3740 | O21: P | P21: =IF(F21="","",IF(OR(O21="P",O21="RP"),"--","NO")) -> -- | Q21: 0,000 | R21: NO | S21: =$I$17*IF(OR(O21="P",O21="RP"),0.1,1)*IF(R21="SI",1,0.1) -> 0.6 | T21: =IF(O21="P",J21*S21*ROUND(N21/60,2),"--") -> 923.7306 | U21: =IF(O21="RP",J21*S21*ROUND(N21/60,2)*Q21/100,"--") -> -- | V21: =IF(AND(O21="F",P21="NO"),J21*S21,"--") -> -- | W21: =IF(O21="F",J21*S21*ROUND(N21/60,2),"--") -> -- | X21: =IF(AND(O21="R",P21="NO"),J21*S21*Q21/100,"--") -> -- | Y21: =IF(O21="R",J21*S21*ROUND(N21/60,2)*Q21/100,"--") -> -- | Z21: =IF(O21="RF",J21*S21*ROUND(N21/60,2),"--") -> -- | AA21: =IF(O21="RR",J21*S21*ROUND(N21/60,2)*Q21/100,"--") -> -- | AB21: =IF(F21="","","SI") -> SI | AC21: =IF(F21="","",SUM(T21:AA21)*IF(AB21="SI",1,2)) -> 923.7306
C22: 22 | D22: 303334 | E22: 764 | F22: FORMOSA | G22: TRAFO 3 | H22: 30 | I22: 132/13,2 | J22: =H22*$I$16 -> 37.05 | K22: 2016-06-01T07:35:00 | L22: 2016-06-01T12:30:00 | M22: =IF(F22="","",(L22-K22)*24) -> 4.916666667 | N22: =IF(F22="","",ROUND((L22-K22)*24*60,0)) -> 295 | O22: P | P22: =IF(F22="","",IF(OR(O22="P",O22="RP"),"--","NO")) -> -- | Q22: 0,000 | R22: NO | S22: =$I$17*IF(OR(O22="P",O22="RP"),0.1,1)*IF(R22="SI",1,0.1) -> 0.6 | T22: =IF(O22="P",J22*S22*ROUND(N22/60,2),"--") -> 109.3716 | U22: =IF(O22="RP",J22*S22*ROUND(N22/60,2)*Q22/100,"--") -> -- | V22: =IF(AND(O22="F",P22="NO"),J22*S22,"--") -> -- | W22: =IF(O22="F",J22*S22*ROUND(N22/60,2),"--") -> -- | X22: =IF(AND(O22="R",P22="NO"),J22*S22*Q22/100,"--") -> -- | Y22: =IF(O22="R",J22*S22*ROUND(N22/60,2)*Q22/100,"--") -> -- | Z22: =IF(O22="RF",J22*S22*ROUND(N22/60,2),"--") -> -- | AA22: =IF(O22="RR",J22*S22*ROUND(N22/60,2)*Q22/100,"--") -> -- | AB22: =IF(F22="","","SI") -> SI | AC22: =IF(F22="","",SUM(T22:AA22)*IF(AB22="SI",1,2)) -> 109.3716
C23: 23 | D23: 303336 | E23: 4708 | F23: GOYA | G23: TRAFO 1 | H23: 30 | I23: 132/33/13,2 | J23: =H23*$I$16 -> 37.05 | K23: 2016-06-02T08:48:00 | L23: 2016-06-04T15:28:00 | M23: 54.66666667 | N23: 3280 | O23: P | P23: -- | Q23: 0,000 | R23: NO | S23: 0.6 | T23: =IF(O23="P",J23*S23*ROUND(N23/60,2),"--") -> 1215.3141 | U23: -- | V23: -- | W23: -- | X23: -- | Y23: -- | Z23: -- | AA23: -- | AB23: SI | AC23: =IF(F23="","",SUM(T23:AA23)*IF(AB23="SI",1,2)) -> 1215.3141
C24: 24 | D24: 303338 | E24: 4204 | F24: MONTE CASEROS | G24: TRAFO 2 | H24: 15 | I24: 132/33/13,2 | J24: 18.525 | K24: 2016-06-03T20:11:00 | L24: 2016-06-03T20:18:00 | M24: 0.1166666667 | N24: 7 | O24: F | P24: NO | Q24: 0,000 | R24: SI | S24: 60 | T24: -- | U24: -- | V24: 1111.5 | W24: 133.38 | X24: -- | Y24: -- | Z24: -- | AA24: -- | AB24: SI | AC24: 1244.88
C25: 25 | D25: 303341 | E25: 5459 | F25: LOMITAS NEA | G25: TR1 | H25: 30 | I25: 132/33/13.2 | J25: 37.05 | K25: 2016-06-05T08:44:00 | L25: 2016-06-05T10:34:00 | M25: 1.833333333 | N25: 110 | O25: P | P25: -- | Q25: 0,000 | R25: NO | S25: 0.6 | T25: 40.6809 | U25: -- | V25: -- | W25: -- | X25: -- | Y25: -- | Z25: -- | AA25: -- | AB25: SI | AC25: 40.6809
C26: 26 | D26: 303638 | E26: 754 | F26: BARRANQUERAS | G26: TRAFO 1 | H26: 20 | I26: 33/13,2 | J26: 24.7 | K26: 2016-06-07T08:07:00 | L26: 2016-06-07T13:07:00 | M26: 5 | N26: 300 | O26: P | P26: -- | Q26: 0,000 | R26: NO | S26: 0.6 | T26: 74.1 | U26: -- | V26: -- | W26: -- | X26: -- | Y26: -- | Z26: -- | AA26: -- | AB26: SI | AC26: 74.1
C27: 27 | D27: 303640 | E27: 768 | F27: GOYA | G27: TRAFO 2 | H27: 15 | I27: 132/33/13,2 | J27: 18.525 | K27: 2016-06-08T08:27:00 | L27: 2016-06-10T11:43:00 | M27: 51.26666667 | N27: 3076 | O27: P | P27: -- | Q27: 0,000 | R27: NO | S27: 0.6 | T27: 569.86605 | U27: -- | V27: -- | W27: -- | X27: -- | Y27: -- | Z27: -- | AA27: -- | AB27: SI | AC27: 569.86605
C28: 28 | D28: 303644 | E28: 750 | F28: BARRANQUERAS | G28: TRAFO 4 | H28: 15 | I28: 132/33/13,2 | J28: 18.525 | K28: 2016-06-09T08:21:00 | L28: 2016-06-09T12:23:00 | M28: 4.033333333 | N28: 242 | O28: F | P28: NO | Q28: 0,000 | R28: SI | S28: 60 | T28: -- | U28: -- | V28: 1111.5 | W28: 4479.345 | X28: -- | Y28: -- | Z28: -- | AA28: -- | AB28: SI | AC28: 5590.845
C29: 29 | D29: 303646 | E29: 752 | F29: BARRANQUERAS | G29: TRAFO 7 | H29: 30 | I29: 132/33/13,2 | J29: 37.05 | K29: 2016-06-09T08:21:00 | L29: 2016-06-09T12:23:00 | M29: 4.033333333 | N29: 242 | O29: F | P29: NO | Q29: 0,000 | R29: SI | S29: 60 | T29: -- | U29: -- | V29: 2223 | W29: 8958.69 | X29: -- | Y29: -- | Z29: -- | AA29: -- | AB29: SI | AC29: 11181.69
C30: 30 | D30: 303647 | E30: 753 | F30: BARRANQUERAS | G30: TRAFO 9 | H30: 30 | I30: 132/33/13,2 | J30: 37.05 | K30: 2016-06-09T08:21:00 | L30: 2016-06-09T12:23:00 | M30: 4.033333333 | N30: 242 | O30: F | P30: NO | Q30: 0,000 | R30: SI | S30: 60 | T30: -- | U30: -- | V30: 2223 | W30: 8958.69 | X30: -- | Y30: -- | Z30: -- | AA30: -- | AB30: SI | AC30: 11181.69
C31: 31 | D31: 303645 | E31: 2662 | F31: BARRANQUERAS | G31: TRAFO 5 | H31: 15 | I31: 132/33/13,2 | J31: 18.525 | K31: 2016-06-09T08:21:00 | L31: 2016-06-09T12:23:00 | M31: 4.033333333 | N31: 242 | O31: F | P31: NO | Q31: 0,000 | R31: SI | S31: 60 | T31: -- | U31: -- | V31: 1111.5 | W31: 4479.345 | X31: -- | Y31: -- | Z31: -- | AA31: -- | AB31: SI | AC31: 5590.845
C32: 32 | D32: 303679 | E32: 752 | F32: BARRANQUERAS | G32: TRAFO 7 | H32: 30 | I32: 132/33/13,2 | J32: 37.05 | K32: 2016-06-09T12:24:00 | L32: 2016-06-30T23:59:00 | M32: 515.5833333 | N32: 30935 | O32: RP | P32: -- | Q32: 50 | R32: NO | S32: 0.6 | T32: -- | U32: 5730.6717 | V32: -- | W32: -- | X32: -- | Y32: -- | Z32: -- | AA32: -- | AB32: SI | AC32: 5730.6717
C33: 33 | D33: 303750 | E33: 764 | F33: FORMOSA | G33: TRAFO 3 | H33: 30 | I33: 132/13,2 | J33: 37.05 | K33: 2016-06-14T07:43:00 | L33: 2016-06-14T12:28:00 | M33: 4.75 | N33: 285 | O33: RP | P33: -- | Q33: 60 | R33: NO | S33: 0.6 | T33: -- | U33: 63.3555 | V33: -- | W33: -- | X33: -- | Y33: -- | Z33: -- | AA33: -- | AB33: SI | AC33: 63.3555
C34: 34 | D34: 303752 | E34: 1336 | F34: FORMOSA | G34: TRAFO 4 | H34: 30 | I34: 132/34,5/13,8 | J34: 37.05 | K34: 2016-06-15T07:38:00 | L34: 2016-06-15T11:14:00 | M34: 3.6 | N34: 216 | O34: RP | P34: -- | Q34: 60 | R34: NO | S34: 0.6 | T34: -- | U34: 48.0168 | V34: -- | W34: -- | X34: -- | Y34: -- | Z34: -- | AA34: -- | AB34: SI | AC34: 48.0168
C35: 35 | D35: 302913 | E35: 752 | F35: BARRANQUERAS | G35: TRAFO 7 | H35: 30 | I35: 132/33/13,2 | J35: 37.05 | K35: 2016-06-01 | L35: 2016-06-09T08:20:00 | M35: 200.3333333 | N35: 12020 | O35: RP | P35: -- | Q35: 50 | R35: NO | S35: 0.6 | T35: -- | U35: 2226.66795 | V35: -- | W35: -- | X35: -- | Y35: -- | Z35: -- | AA35: -- | AB35: SI | AC35: 2226.66795
C36: 36 | D36: 303983 | E36: 3305 | F36: FORMOSA | G36: TRAFO 1 | H36: 30 | I36: 132/33/13,8 | J36: 37.05 | K36: 2016-06-22T07:41:00 | L36: 2016-06-22T12:08:00 | M36: 4.45 | N36: 267 | O36: RP | P36: -- | Q36: 40 | R36: NO | S36: 0.6 | T36: -- | U36: 39.5694 | V36: -- | W36: -- | X36: -- | Y36: -- | Z36: -- | AA36: -- | AB36: SI | AC36: 35.8848
C37: 37 | D37: 303984 | E37: 4204 | F37: MONTE CASEROS | G37: TRAFO 2 | H37: 15 | I37: 132/33/13,2 | J37: 18.525 | K37: 2016-06-22T21:07:00 | L37: 2016-06-22T21:36:00 | M37: 0.4833333333 | N37: 29 | O37: F | P37: NO | Q37: 0,000 | R37: SI | S37: 60 | T37: -- | U37: -- | V37: 1111.5 | W37: 533.52 | X37: -- | Y37: -- | Z37: -- | AA37: -- | AB37: SI | AC37: 149.184
C38: 38 | D38: 303986 | E38: 1336 | F38: FORMOSA | G38: TRAFO 4 | H38: 30 | I38: 132/34,5/13,8 | J38: 37.05 | K38: 2016-06-23T07:31:00 | L38: 2016-06-23T12:26:00 | M38: 4.916666667 | N38: 295 | O38: RP | P38: -- | Q38: 60 | R38: NO | S38: 0.6 | T38: -- | U38: 65.62296 | V38: -- | W38: -- | X38: -- | Y38: -- | Z38: -- | AA38: -- | AB38: SI | AC38: 59.51232
C39: 39 | D39: 303988 | E39: 4866 | F39: CLORINDA | G39: TRAFO 3 | H39: 150 | I39: 220/132/13,2 | J39: 185.25 | K39: 2016-06-24T07:46:00 | L39: 2016-06-24T12:20:00 | M39: 4.566666667 | N39: 274 | O39: P | P39: -- | Q39: 0,000 | R39: NO | S39: 0.6 | T39: 507.9555 | U39: -- | V39: -- | W39: -- | X39: -- | Y39: -- | Z39: -- | AA39: -- | AB39: SI | AC39: 460.656
C40: 40 | D40: 304233 | E40: 3305 | F40: FORMOSA | G40: TRAFO 1 | H40: 30 | I40: 132/33/13,8 | J40: 37.05 | K40: 2016-06-27T05:54:00 | L40: 2016-06-27T06:17:00 | M40: 0.3833333334 | N40: 23 | O40: F | P40: NO | Q40: 0,000 | R40: SI | S40: 60 | T40: -- | U40: -- | V40: 2223 | W40: 844.74 | X40: -- | Y40: -- | Z40: -- | AA40: -- | AB40: SI | AC40: 1094.688
C41: 40b | D41: 304233b | E41: 3305 | F41: FORMOSA | G41: TRAFO 1 | H41: 30 | I41: 132/33/13,8 | J41: 37.05 | K41: 2016-06-27T06:17:00 | L41: 2016-06-27T10:20:00 | M41: 4.05 | N41: 243 | O41: RF | P41: NO | Q41: 0 | R41: NO | S41: 6 | T41: -- | U41: -- | V41: -- | W41: -- | X41: -- | Y41: -- | Z41: 900.315 | AA41: -- | AB41: SI | AC41: 900.315
C43: (²) | D43: P - PROGRAMADA ; F - FORZADA ; RP - REDUCCIÓN PROGRAMADA ; RF - RESTANTE FORZADA | T43: =SUM(T20:T42) -> 3441.01875 | U43: =SUM(U20:U42) -> 8173.90431 | V43: 11115 | W43: 28387.71 | X43: 0 | Y43: 0 | Z43: 900.315 | AA43: 0 | AC43: =ROUND(SUM(AC20:AC42),2) -> 48491.97

Sheet T-06 (2)
B2: =+'TOT-0616'!B2 -> ANEXO VI al Memorandum D.T.E.E. N° 294 /2017
A4: ENTE NACIONAL REGULADOR
A5: DE LA ELECTRICIDAD
F8: SISTEMA DE TRANSPORTE DE ENERGÍA ELÉCTRICA POR DISTRIBUCIÓN TRONCAL - TRANSNEA S.A.
F10: 2.- CONEXIÓN
F12: 2.1.- Transformación
B14: =+'TOT-0616'!B14 -> Desde el 01 al 30 de junio de 2016
F16: Por Transformador [$ / h - MVA] = | I16: 1.235
F17: Coeficiente de penalización por salida forzada = | I17: =30*'TOT-0616'!B13 -> 60 | K17: =IF(I17=30," ",IF(I17=60," Coeficiente duplicado por tasa de falla >4 Sal. x año/100 km."," REVISAR COEFICIENTE")) -> Coeficiente duplicado por tasa de falla >4 Sal. x año/100 km.
C18: 3 | D18: 4 | E18: 5 | F18: 6 | G18: 7 | H18: 8 | I18: 9 | J18: 10 | K18: 11 | L18: 12 | M18: 13 | N18: 14 | O18: 15 | P18: 16 | Q18: 17 | R18: 18 | S18: 19 | T18: 20 | U18: 21 | V18: 22 | W18: 23 | X18: 24 | Y18: 25 | Z18: 26 | AA18: 27 | AB18: 28 | AC18: 29
C19: N° | D19: INDISP | E19: ID EQUIPO | F19: ESTACIÓN TRANSFORMADORA | G19: EQUIPO | H19: POT. [MVA] | I19: U [kV] | J19: $/h | K19: Salida | L19: Entrada | M19: Hs. Indisp. | N19: Mtos. Indisp. | O19: Tipo Sal.(²) | P19: AUT. | Q19: C.R. % | R19: E.N.S. | S19: K (P;ENS) | T19: PENALIZ. PROGRAM. | U19: REDUCC. PROGRAM. | V19: PENALIZACIÓN FORZADA Por Salida hs. Restantes | X19: REDUCC. FORZADA Por Salida hs. Restantes | Z19: RESTANTE FORZADA | AA19: REDUCC. RESTANTE | AB19: Informó enTérm. | AC19: TOTAL PENALIZAC.
AC20: ='T-06 (1)'!AC43 -> 48491.97
C22: 41 | D22: 304242 | E22: 4204 | F22: MONTE CASEROS | G22: TRAFO 2 | H22: 15 | I22: 132/33/13,2 | J22: =H22*$I$16 -> 18.525 | K22: 2016-06-28T11:34:00 | L22: 2016-06-28T11:42:00 | M22: =IF(F22="","",(L22-K22)*24) -> 0.1333333334 | N22: =IF(F22="","",ROUND((L22-K22)*24*60,0)) -> 8 | O22: F | P22: =IF(F22="","",IF(OR(O22="P",O22="RP"),"--","NO")) -> NO | Q22: 0,000 | R22: SI | S22: =$I$17*IF(OR(O22="P",O22="RP"),0.1,1)*IF(R22="SI",1,0.1) -> 60 | T22: =IF(O22="P",J22*S22*ROUND(N22/60,2),"--") -> -- | U22: =IF(O22="RP",J22*S22*ROUND(N22/60,2)*Q22/100,"--") -> -- | V22: =IF(AND(O22="F",P22="NO"),J22*S22,"--") -> 1111.5 | W22: =IF(O22="F",J22*S22*ROUND(N22/60,2),"--") -> 144.495 | X22: =IF(AND(O22="R",P22="NO"),J22*S22*Q22/100,"--") -> -- | Y22: =IF(O22="R",J22*S22*ROUND(N22/60,2)*Q22/100,"--") -> -- | Z22: =IF(O22="RF",J22*S22*ROUND(N22/60,2),"--") -> -- | AA22: =IF(O22="RR",J22*S22*ROUND(N22/60,2)*Q22/100,"--") -> -- | AB22: SI | AC22: =IF(F22="","",SUM(T22:AA22)*IF(AB22="SI",1,2)) -> 1255.995
C23: 42 | D23: 304274 | E23: 4204 | F23: MONTE CASEROS | G23: TRAFO 2 | H23: 15 | I23: 132/33/13,2 | J23: =H23*$I$16 -> 18.525 | K23: 2016-06-30T04:27:00 | L23: 2016-06-30T05:02:00 | M23: 0.5833333333 | N23: 35 | O23: F | P23: NO | Q23: 0,000 | R23: SI | S23: =$I$17*IF(OR(O23="P",O23="RP"),0.1,1)*IF(R23="SI",1,0.1) -> 60 | T23: =IF(O23="P",J23*S23*ROUND(N23/60,2),"--") -> -- | U23: =IF(O23="RP",J23*S23*ROUND(N23/60,2)*Q23/100,"--") -> -- | V23: =IF(AND(O23="F",P23="NO"),J23*S23,"--") -> 1111.5 | W23: =IF(O23="F",J23*S23*ROUND(N23/60,2),"--") -> 644.67 | X23: =IF(AND(O23="R",P23="NO"),J23*S23*Q23/100,"--") -> -- | Y23: =IF(O23="R",J23*S23*ROUND(N23/60,2)*Q23/100,"--") -> -- | Z23: =IF(O23="RF",J23*S23*ROUND(N23/60,2),"--") -> -- | AA23: =IF(O23="RR",J23*S23*ROUND(N23/60,2)*Q23/100,"--") -> -- | AB23: SI | AC23: 1756.17
C24: 43 | D24: 304276 | E24: 4204 | F24: MONTE CASEROS | G24: TRAFO 2 | H24: 15 | I24: 132/33/13,2 | J24: 18.525 | K24: 2016-06-30T05:34:00 | L24: 2016-06-30T05:42:00 | M24: 0.1333333334 | N24: 8 | O24: F | P24: NO | Q24: 0,000 | R24: SI | S24: 60 | T24: -- | U24: -- | V24: 1111.5 | W24: 144.495 | X24: -- | Y24: -- | Z24: -- | AA24: -- | AB24: SI | AC24: 1255.995
C25: 44 | D25: 304278 | E25: 4204 | F25: MONTE CASEROS | G25: TRAFO 2 | H25: 15 | I25: 132/33/13,2 | J25: 18.525 | K25: 2016-06-30T06:10:00 | L25: 2016-06-30T06:43:00 | M25: 0.55 | N25: 33 | O25: F | P25: NO | Q25: 0,000 | R25: SI | S25: 60 | T25: -- | U25: -- | V25: 1111.5 | W25: 611.325 | X25: -- | Y25: -- | Z25: -- | AA25: -- | AB25: SI | AC25: 1722.825
C26: 44b | D26: 304278 | E26: 4204 | F26: MONTE CASEROS | G26: TRAFO 2 | H26: 15 | I26: 132/33/13,2 | J26: =H26*$I$16 -> 18.525 | K26: 2016-06-30T06:43:00 | L26: 2016-06-30T11:06:00 | M26: 4.383333333 | N26: 263 | O26: RF | P26: NO | Q26: 0,000 | R26: NO | S26: =$I$17*IF(OR(O26="P",O26="RP"),0.1,1)*IF(R26="SI",1,0.1) -> 6 | T26: =IF(O26="P",J26*S26*ROUND(N26/60,2),"--") -> -- | U26: =IF(O26="RP",J26*S26*ROUND(N26/60,2)*Q26/100,"--") -> -- | V26: =IF(AND(O26="F",P26="NO"),J26*S26,"--") -> -- | W26: =IF(O26="F",J26*S26*ROUND(N26/60,2),"--") -> -- | X26: =IF(AND(O26="R",P26="NO"),J26*S26*Q26/100,"--") -> -- | Y26: =IF(O26="R",J26*S26*ROUND(N26/60,2)*Q26/100,"--") -> -- | Z26: =IF(O26="RF",J26*S26*ROUND(N26/60,2),"--") -> 486.837 | AA26: =IF(O26="RR",J26*S26*ROUND(N26/60,2)*Q26/100,"--") -> -- | AB26: SI | AC26: 486.837
C27: 45 | D27: 304281 | E27: 3305 | F27: FORMOSA | G27: TRAFO 1 | H27: 30 | I27: 132/33/13,8 | J27: 37.05 | K27: 2016-06-30T08:44:00 | L27: 2016-06-30T13:09:00 | M27: 4.416666667 | N27: 265 | O27: P | P27: -- | Q27: 0,000 | R27: NO | S27: 0.6 | T27: 98.2566 | U27: -- | V27: -- | W27: -- | X27: -- | Y27: -- | Z27: -- | AA27: -- | AB27: =IF(F27="","","SI") -> SI | AC27: 98.2566
J29: 0 | M29: =IF(F29="","",(L29-K29)*24) ->  | N29: =IF(F29="","",ROUND((L29-K29)*24*60,0)) ->  | P29: =IF(F29="","",IF(OR(O29="P",O29="RP"),"--","NO")) ->  | Q29: =IF(F29="","","--") ->  | R29: =IF(F29="","","NO") ->  | S29: 6 | T29: -- | U29: -- | V29: -- | W29: -- | X29: -- | Y29: -- | Z29: -- | AA29: -- | AB29: =IF(F29="","","SI") ->  | AC29: =IF(F29="","",SUM(T29:AA29)*IF(AB29="SI",1,2)) -> 
J30: 0 | S30: 6 | T30: -- | U30: -- | V30: -- | W30: -- | X30: -- | Y30: -- | Z30: -- | AA30: --
J31: 0 | M31: =IF(F31="","",(L31-K31)*24) ->  | N31: =IF(F31="","",ROUND((L31-K31)*24*60,0)) ->  | P31: =IF(F31="","",IF(OR(O31="P",O31="RP"),"--","NO")) ->  | Q31: =IF(F31="","","--") ->  | R31: =IF(F31="","","NO") ->  | S31: 6 | T31: -- | U31: -- | V31: -- | W31: -- | X31: -- | Y31: -- | Z31: -- | AA31: -- | AB31: =IF(F31="","","SI") ->  | AC31: =IF(F31="","",SUM(T31:AA31)*IF(AB31="SI",1,2)) -> 
J32: 0 | S32: 6 | T32: -- | U32: -- | V32: -- | W32: -- | X32: -- | Y32: -- | Z32: -- | AA32: --
J33: 0 | S33: 6 | T33: -- | U33: -- | V33: -- | W33: -- | X33: -- | Y33: -- | Z33: -- | AA33: --
J34: 0 | S34: 6 | T34: -- | U34: -- | V34: -- | W34: -- | X34: -- | Y34: -- | Z34: -- | AA34: --
J35: 0 | S35: 6 | T35: -- | U35: -- | V35: -- | W35: -- | X35: -- | Y35: -- | Z35: -- | AA35: --
J36: 0 | M36: =IF(F36="","",(L36-K36)*24) ->  | N36: =IF(F36="","",ROUND((L36-K36)*24*60,0)) ->  | P36: =IF(F36="","",IF(OR(O36="P",O36="RP"),"--","NO")) ->  | Q36: =IF(F36="","","--") ->  | R36: =IF(F36="","","NO") ->  | S36: 6 | T36: -- | U36: -- | V36: -- | W36: -- | X36: -- | Y36: -- | Z36: -- | AA36: -- | AB36: =IF(F36="","","SI") ->  | AC36: =IF(F36="","",SUM(T36:AA36)*IF(AB36="SI",1,2)) -> 
J37: 0 | S37: 6 | T37: -- | U37: -- | V37: -- | W37: -- | X37: -- | Y37: -- | Z37: -- | AA37: --
J38: 0 | S38: 6 | T38: -- | U38: -- | V38: -- | W38: -- | X38: -- | Y38: -- | Z38: -- | AA38: --
J39: 0 | S39: 6 | T39: -- | U39: -- | V39: -- | W39: -- | X39: -- | Y39: -- | Z39: -- | AA39: --
J40: 0 | Q40: =IF(F40="","","--") ->  | R40: =IF(F40="","","NO") ->  | S40: 6 | T40: -- | U40: -- | V40: -- | W40: -- | X40: -- | Y40: -- | Z40: -- | AA40: --
J41: 0 | Q41: =IF(F41="","","--") ->  | R41: =IF(F41="","","NO") ->  | S41: 6 | T41: -- | U41: -- | V41: -- | W41: -- | X41: -- | Y41: -- | Z41: -- | AA41: --
J42: 0 | Q42: =IF(F42="","","--") ->  | R42: =IF(F42="","","NO") ->  | S42: 6 | T42: -- | U42: -- | V42: -- | W42: -- | X42: -- | Y42: -- | Z42: -- | AA42: --
C44: (²) | D44: P - PROGRAMADA ; F - FORZADA ; RF - RESTANTE FORZADA | T44: =SUM(T20:T43) -> 98.2566 | U44: 0 | V44: 4446 | W44: 1544.985 | X44: 0 | Y44: 0 | Z44: 486.837 | AA44: 0 | AC44: =ROUND(SUM(AC20:AC43),2) -> 55068.05

Sheet SA-06 (1)
B2: =+'TOT-0616'!B2 -> ANEXO VI al Memorandum D.T.E.E. N° 294 /2017
A4: ENTE NACIONAL REGULADOR
A5: DE LA ELECTRICIDAD
F8: SISTEMA DE TRANSPORTE DE ENERGÍA ELÉCTRICA POR DISTRIBUCIÓN TRONCAL - TRANSNEA S.A.
F10: 2.2.- Salidas
B12: =+'TOT-0616'!B14 -> Desde el 01 al 30 de junio de 2016
F14: Salida en 220 kV | G14: 16.043 | H14: =60*'TOT-0616'!B13 -> 120 | J14: =IF(H14=60," ",IF(H14=120," Coeficiente duplicado por tasa de falla >4 Sal. x año/100 km."," REVISAR COEFICIENTE")) -> Coeficiente duplicado por tasa de falla >4 Sal. x año/100 km.
F15: Salida en 132 kV = | G15: 16.043 | H15: =50*'TOT-0616'!B13 -> 100 | J15: =IF(H15=50," ",IF(H15=100," Coeficiente duplicado por tasa de falla >4 Sal. x año/100 km."," REVISAR COEFICIENTE")) -> Coeficiente duplicado por tasa de falla >4 Sal. x año/100 km.
F16: Salida en 33 kV | G16: 12.029 | H16: =25*'TOT-0616'!B13 -> 50 | J16: =IF(H16=25," ",IF(H16=50," Coeficiente duplicado por tasa de falla >4 Sal. x año/100 km."," REVISAR COEFICIENTE")) -> Coeficiente duplicado por tasa de falla >4 Sal. x año/100 km.
F17: Salida en 13,2 kV = | G17: 12.029 | H17: =20*'TOT-0616'!B13 -> 40 | J17: =IF(H17=20," ",IF(H17=40," Coeficiente duplicado por tasa de falla >4 Sal. x año/100 km."," REVISAR COEFICIENTE")) -> Coeficiente duplicado por tasa de falla >4 Sal. x año/100 km.
C18: 3 | D18: 4 | E18: 5 | F18: 6 | G18: 7 | H18: 8 | I18: 9 | J18: 10 | K18: 11 | L18: 12 | M18: 13 | N18: 14 | O18: 15 | P18: 16 | Q18: 17 | R18: 18 | S18: 19 | T18: 20 | U18: 21 | V18: 22
C19: N° | D19: INDISP | E19: ID EQUIPO | F19: ESTACIÓN TRANSFORMADORA | G19: EQUIPO | H19: U [kV] | I19: $/h | J19: Salida | K19: Entrada | L19: Hs. Indisp. | M19: Mtos. Indisp. | N19: Tipo Sal.(²) | O19: AUT. | P19: K | Q19: PENALIZ. PROGRAM. | R19: PENALIZACIÓN FORZADA Por Salida hs. Restantes | T19: RESTANTE FORZADA | U19: Informó enTérm. | V19: TOTAL PENALIZAC.
C22: 46 | D22: 303641 | E22: 776 | F22: BARRANQUERAS | G22: LINEA CDAD. RESISTENCIA 1 | H22: 33 | I22: =IF(H22=220,$G$14,IF(AND(H22<=132,H22>=66),$G$15,IF(AND(H22<66,H22>=33),$G$16,$G$17))) -> 12.029 | J22: 2016-06-08T08:51:00 | K22: 2016-06-30T23:59:00 | L22: =IF(F22="","",(K22-J22)*24) -> 543.1333333 | M22: =IF(F22="","",ROUND((K22-J22)*24*60,0)) -> 32588 | N22: P | O22: =IF(F22="","",IF(OR(N22="P",N22="RP"),"--","NO")) -> -- | P22: =IF(H22=220,$H$14,IF(AND(H22<=132,H22>=66),$H$15,IF(AND(H22<66,H22>=33),$H$16,$H$17))) -> 50 | Q22: =IF(N22="P",I22*P22*ROUND(M22/60,2)*0.1,"--") -> 32666.55385 | R22: =IF(AND(N22="F",O22="NO"),I22*P22,"--") -> -- | S22: =IF(N22="F",I22*P22*ROUND(M22/60,2),"--") -> -- | T22: =IF(N22="RF",I22*P22*ROUND(M22/60,2),"--") -> -- | U22: SI | V22: =IF(F22="","",SUM(Q22:T22)*IF(U22="SI",1,2)*IF(H22="500/220",0,1)) -> 32666.55385
I23: =IF(H23=220,$G$14,IF(AND(H23<=132,H23>=66),$G$15,IF(AND(H23<66,H23>=33),$G$16,$G$17))) -> 12.029 | L23: =IF(F23="","",(K23-J23)*24) ->  | M23: =IF(F23="","",ROUND((K23-J23)*24*60,0)) ->  | O23: =IF(F23="","",IF(OR(N23="P",N23="RP"),"--","NO")) ->  | P23: =IF(H23=220,$H$14,IF(AND(H23<=132,H23>=66),$H$15,IF(AND(H23<66,H23>=33),$H$16,$H$17))) -> 40 | Q23: =IF(N23="P",I23*P23*ROUND(M23/60,2)*0.1,"--") -> -- | R23: =IF(AND(N23="F",O23="NO"),I23*P23,"--") -> -- | S23: =IF(N23="F",I23*P23*ROUND(M23/60,2),"--") -> -- | T23: =IF(N23="RF",I23*P23*ROUND(M23/60,2),"--") -> -- | U23: =IF(F23="","","SI") ->  | V23: =IF(F23="","",SUM(Q23:T23)*IF(U23="SI",1,2)*IF(H23="500/220",0,1)) -> 
I24: 12.029 | P24: 40 | Q24: -- | R24: -- | S24: -- | T24: --
I25: 12.029 | P25: 40 | Q25: -- | R25: -- | S25: -- | T25: --
I26: 12.029 | P26: 40 | Q26: -- | R26: -- | S26: -- | T26: --
I27: 12.029 | P27: 40 | Q27: -- | R27: -- | S27: -- | T27: --
I28: 12.029 | P28: 40 | Q28: -- | R28: -- | S28: -- | T28: --
I29: 12.029 | P29: 40 | Q29: -- | R29: -- | S29: -- | T29: --
I30: 12.029 | P30: 40 | Q30: -- | R30: -- | S30: -- | T30: --
I31: 12.029 | P31: 40 | Q31: -- | R31: -- | S31: -- | T31: --
I32: 12.029 | P32: 40 | Q32: -- | R32: -- | S32: -- | T32: --
I33: 12.029 | P33: 40 | Q33: -- | R33: -- | S33: -- | T33: --
I34: 12.029 | P34: 40 | Q34: -- | R34: -- | S34: -- | T34: --
I35: 12.029 | P35: 40 | Q35: -- | R35: -- | S35: -- | T35: --
I36: 12.029 | P36: 40 | Q36: -- | R36: -- | S36: -- | T36: --
I37: 12.029 | P37: 40 | Q37: -- | R37: -- | S37: -- | T37: --
I38: 12.029 | P38: 40 | Q38: -- | R38: -- | S38: -- | T38: --
I39: =IF(H39=220,$G$14,IF(AND(H39<=132,H39>=66),$G$15,IF(AND(H39<66,H39>=33),$G$16,$G$17))) -> 12.029 | L39: =IF(F39="","",(K39-J39)*24) ->  | M39: =IF(F39="","",ROUND((K39-J39)*24*60,0)) ->  | P39: =IF(H39=220,$H$14,IF(AND(H39<=132,H39>=66),$H$15,IF(AND(H39<66,H39>=33),$H$16,$H$17))) -> 40 | Q39: =IF(N39="P",I39*P39*ROUND(M39/60,2)*0.1,"--") -> -- | R39: =IF(AND(N39="F",O39="NO"),I39*P39,"--") -> -- | S39: =IF(N39="F",I39*P39*ROUND(M39/60,2),"--") -> -- | T39: =IF(N39="RF",I39*P39*ROUND(M39/60,2),"--") -> -- | U39: =IF(F39="","","SI") -> 
I40: =IF(H40=220,$G$14,IF(AND(H40<=132,H40>=66),$G$15,IF(AND(H40<66,H40>=33),$G$16,$G$17))) -> 12.029 | L40: =IF(F40="","",(K40-J40)*24) ->  | M40: =IF(F40="","",ROUND((K40-J40)*24*60,0)) ->  | P40: =IF(H40=220,$H$14,IF(AND(H40<=132,H40>=66),$H$15,IF(AND(H40<66,H40>=33),$H$16,$H$17))) -> 40 | Q40: =IF(N40="P",I40*P40*ROUND(M40/60,2)*0.1,"--") -> -- | R40: =IF(AND(N40="F",O40="NO"),I40*P40,"--") -> -- | S40: =IF(N40="F",I40*P40*ROUND(M40/60,2),"--") -> -- | T40: =IF(N40="RF",I40*P40*ROUND(M40/60,2),"--") -> -- | U40: =IF(F40="","","SI") -> 
I41: =IF(H41=220,$G$14,IF(AND(H41<=132,H41>=66),$G$15,IF(AND(H41<66,H41>=33),$G$16,$G$17))) -> 12.029 | L41: =IF(F41="","",(K41-J41)*24) ->  | M41: =IF(F41="","",ROUND((K41-J41)*24*60,0)) ->  | P41: =IF(H41=220,$H$14,IF(AND(H41<=132,H41>=66),$H$15,IF(AND(H41<66,H41>=33),$H$16,$H$17))) -> 40 | Q41: =IF(N41="P",I41*P41*ROUND(M41/60,2)*0.1,"--") -> -- | R41: =IF(AND(N41="F",O41="NO"),I41*P41,"--") -> -- | S41: =IF(N41="F",I41*P41*ROUND(M41/60,2),"--") -> -- | T41: =IF(N41="RF",I41*P41*ROUND(M41/60,2),"--") -> -- | U41: =IF(F41="","","SI") -> 
C43: (²) | D43: P - PROGRAMADA | Q43: =SUM(Q20:Q42) -> 32666.55385 | R43: =SUM(R20:R42) -> 0 | S43: =SUM(S20:S42) -> 0 | T43: =SUM(T20:T42) -> 0 | V43: =ROUND(SUM(V20:V42),2) -> 32666.55

Sheet SUP-DPEC
B2: ='TOT-0616'!B2 -> ANEXO VI al Memorandum D.T.E.E. N° 294 /2017
A4: ENTE NACIONAL REGULADOR
A5: DE LA ELECTRICIDAD
D8: SISTEMA DE TRANSPORTE DE ENERGÍA ELÉCTRICA POR DISTRIBUCIÓN TRONCAL - TRANSNEA S.A.
D10: 3.1.-SUPERVISIÓN - Transportista Independiente D.P.E.C.
B12: ='TOT-0616'!B14 -> Desde el 01 al 30 de junio de 2016
C16: a) Datos
K17: K
D18: Tiempo de servicio = | E18: =MID(B12,16,2)*24 -> 720 | F18: hs | H18: $/100 km-h : LÍNEAS 220 kV | J18: - | K18: =30*'TOT-0616'!B13 -> 60
D19: Porcentaje por Supervisión = | E19: 0.025 | H19: $/100 km-h : LÍNEAS 132 kV | J19: 345.493 | M19: RM por Transformador = | Y19: - | Z19: $/h-MVA
H20: $/100 km-h : LÍNEAS 66 kV | J20: - | M20: RM Salidas 132 kV = | Y20: 16.043 | Z20: $/hs.
C22: b) SM: es la suma de las sanciones a que en cada mes se hiciere pasible el Transportista Independiente, valorizadas con idénticos criterios que los que se aplican a la Concesionaria.
C24: N° | D24: LÍNEAS | E24: U [kV] | F24: Long. [km] | G24: $/h | H24: Salida | I24: Entrada | J24: Hs. Indisp. | K24: Minutos Indisp. | L24: Tipo Sal.(²) | M24: C.R. % | N24: PENALIZAC. PROGRAM. | O24: REDUCC. PROGRAM. | P24: PENALIZACIÓN FORZADA Por Salida 1ras. 3 hs. hs. Restantes | S24: REDUCC. FORZADA Por Salida 1ras. 3 hs. hs. Restantes | V24: RESTANTE FORZADA | W24: REDUCC. RESTANTE | X24: Informó enTérm. | Y24: TOTAL PENALIZAC.
C26: I | D26: PASO DE LOS LIBRES - MONTE CASEROS | E26: 132 | F26: 101 | G26: =IF(F26>25,F26,25)*IF(E26=220,$J$18,IF(E26=132,$J$19,$J$20))/100 -> 348.94793 | H26: 2016-06-12T02:47:00 | I26: 2016-06-12T16:45:00 | J26: =IF(D26="","",(I26-H26)*24) -> 13.96666667 | K26: =IF(D26="","",ROUND((I26-H26)*24*60,0)) -> 838 | L26: F | M26: =IF(D26="","","--") -> -- | N26: =IF(L26="P",ROUND(K26/60,2)*G26*$K$18*0.01,"--") -> -- | O26: =IF(L26="RP",ROUND(K26/60,2)*G26*$K$18*0.01*M26/100,"--") -> -- | P26: =IF(L26="F",G26*$K$18,"--") -> 20936.8758 | Q26: =IF(AND(K26>10,L26="F"),G26*$K$18*IF(K26>180,3,ROUND(K26/60,2)),"--") -> 62810.6274 | R26: =IF(AND(L26="F",K26>180),(ROUND(K26/60,2)-3)*G26*$K$18*0.1,"--") -> 22967.75275 | S26: =IF(L26="R",G26*$K$18*M26/100,"--") -> -- | T26: =IF(AND(K26>10,L26="R"),G26*$K$18*M26/100*IF(K26>180,3,ROUND(K26/60,2)),"--") -> -- | U26: =IF(AND(L26="R",K26>180),(ROUND(K26/60,2)-3)*G26*$K$18*0.1*M26/100,"--") -> -- | V26: =IF(L26="RF",ROUND(K26/60,2)*G26*$K$18*0.1,"--") -> -- | W26: =IF(L26="RR",ROUND(K26/60,2)*G26*$K$18*0.1*M26/100,"--") -> -- | X26: =IF(D26="","","SI") -> SI | Y26: =IF(D26="","",SUM(N26:W26)*IF(X26="SI",1,2)) -> 106715.256
C27: II | D27: PASO DE LOS LIBRES - MONTE CASEROS | E27: 132 | F27: 101 | G27: =IF(F27>25,F27,25)*IF(E27=220,$J$18,IF(E27=132,$J$19,$J$20))/100 -> 348.94793 | H27: 2016-06-13T06:30:00 | I27: 2016-06-13T12:44:00 | J27: =IF(D27="","",(I27-H27)*24) -> 6.233333333 | K27: =IF(D27="","",ROUND((I27-H27)*24*60,0)) -> 374 | L27: F | M27: =IF(D27="","","--") -> -- | N27: =IF(L27="P",ROUND(K27/60,2)*G27*$K$18*0.01,"--") -> -- | O27: =IF(L27="RP",ROUND(K27/60,2)*G27*$K$18*0.01*M27/100,"--") -> -- | P27: =IF(L27="F",G27*$K$18,"--") -> 20936.8758 | Q27: =IF(AND(K27>10,L27="F"),G27*$K$18*IF(K27>180,3,ROUND(K27/60,2)),"--") -> 62810.6274 | R27: =IF(AND(L27="F",K27>180),(ROUND(K27/60,2)-3)*G27*$K$18*0.1,"--") -> 6762.610883 | S27: =IF(L27="R",G27*$K$18*M27/100,"--") -> -- | T27: =IF(AND(K27>10,L27="R"),G27*$K$18*M27/100*IF(K27>180,3,ROUND(K27/60,2)),"--") -> -- | U27: =IF(AND(L27="R",K27>180),(ROUND(K27/60,2)-3)*G27*$K$18*0.1*M27/100,"--") -> -- | V27: =IF(L27="RF",ROUND(K27/60,2)*G27*$K$18*0.1,"--") -> -- | W27: =IF(L27="RR",ROUND(K27/60,2)*G27*$K$18*0.1*M27/100,"--") -> -- | X27: SI | Y27: 90510.11408
C28: III | D28: PASO DE LOS LIBRES - MONTE CASEROS | E28: 132 | F28: 101 | G28: =IF(F28>25,F28,25)*IF(E28=220,$J$18,IF(E28=132,$J$19,$J$20))/100 -> 348.94793 | H28: 2016-06-18T02:05:00 | I28: 2016-06-18T02:15:00 | J28: 0.1666666667 | K28: 10 | L28: F | M28: =IF(D28="","","--") -> -- | N28: =IF(L28="P",ROUND(K28/60,2)*G28*$K$18*0.01,"--") -> -- | O28: =IF(L28="RP",ROUND(K28/60,2)*G28*$K$18*0.01*M28/100,"--") -> -- | P28: =IF(L28="F",G28*$K$18,"--") -> 20936.8758 | Q28: =IF(AND(K28>10,L28="F"),G28*$K$18*IF(K28>180,3,ROUND(K28/60,2)),"--") -> -- | R28: =IF(AND(L28="F",K28>180),(ROUND(K28/60,2)-3)*G28*$K$18*0.1,"--") -> -- | S28: =IF(L28="R",G28*$K$18*M28/100,"--") -> -- | T28: =IF(AND(K28>10,L28="R"),G28*$K$18*M28/100*IF(K28>180,3,ROUND(K28/60,2)),"--") -> -- | U28: =IF(AND(L28="R",K28>180),(ROUND(K28/60,2)-3)*G28*$K$18*0.1*M28/100,"--") -> -- | V28: =IF(L28="RF",ROUND(K28/60,2)*G28*$K$18*0.1,"--") -> -- | W28: =IF(L28="RR",ROUND(K28/60,2)*G28*$K$18*0.1*M28/100,"--") -> -- | X28: SI | Y28: 20936.8758
C29: IV | D29: PASO DE LOS LIBRES - MONTE CASEROS | E29: 132 | F29: 101 | G29: 348.94793 | H29: 2016-06-18T03:42:00 | I29: 2016-06-18T12:15:00 | J29: 8.55 | K29: 513 | L29: F | M29: -- | N29: -- | O29: -- | P29: 20936.8758 | Q29: 62810.6274 | R29: 11619.96607 | S29: -- | T29: -- | U29: -- | V29: -- | W29: -- | X29: SI | Y29: 95367.46927
C30: V | D30: PASO DE LOS LIBRES - MONTE CASEROS | E30: 132 | F30: 101 | G30: 348.94793 | H30: 2016-06-22T05:55:00 | I30: 2016-06-22T06:02:00 | J30: 0.1166666665 | K30: 7 | L30: F | M30: -- | N30: -- | O30: -- | P30: 20936.8758 | Q30: -- | R30: -- | S30: -- | T30: -- | U30: -- | V30: -- | W30: -- | X30: SI | Y30: 20936.8758
C31: VI | D31: PASO DE LOS LIBRES - MONTE CASEROS | E31: 132 | F31: 101 | G31: 348.94793 | H31: 2016-06-27T22:54:00 | I31: 2016-06-27T23:04:00 | J31: 0.1666666665 | K31: 10 | L31: F | M31: -- | N31: -- | O31: -- | P31: 20936.8758 | Q31: -- | R31: -- | S31: -- | T31: -- | U31: -- | V31: -- | W31: -- | X31: SI | Y31: 20936.8758
C32: VII | D32: PASO DE LOS LIBRES - MONTE CASEROS | E32: 132 | F32: 101 | G32: 348.94793 | H32: 2016-06-29T06:38:00 | I32: 2016-06-29T06:50:00 | J32: 0.2 | K32: 12 | L32: F | M32: -- | N32: -- | O32: -- | P32: 20936.8758 | Q32: 4187.37516 | R32: -- | S32: -- | T32: -- | U32: -- | V32: -- | W32: -- | X32: SI | Y32: 25124.25096
C33: VIII | G33: =IF(F33>25,F33,25)*IF(E33=220,$J$18,IF(E33=132,$J$19,$J$20))/100 ->  | M33: =IF(D33="","","--") ->  | N33: -- | O33: -- | P33: -- | Q33: -- | R33: -- | S33: -- | T33: -- | U33: -- | V33: -- | W33: --
J34: =IF(D34="","",(I34-H34)*24) ->  | K34: =IF(D34="","",ROUND((I34-H34)*24*60,0)) ->  | M34: =IF(D34="","","--") ->  | X34: =IF(D34="","","SI") ->  | Y34: =IF(D34="","",SUM(N34:W34)*IF(X34="SI",1,2)) -> 
Y35: =SUM(Y26:Y34) -> 380527.7177
C37: N° | D37: ESTACIÓN TRANSFORMADORA | E37: EQUIPO | F37: U [kV] | G37: $/h | H37: Salida | I37: Entrada | J37: Hs. Indisp. | K37: Mtos. Indisp. | L37: Tipo Sal.(²) | M37: AUT. | N37: K | O37: PENALIZ. PROGRAM. | P37: PENALIZACIÓN FORZADA Por Salida hs. Restantes | V37: RESTANTE FORZADA | X37: Informó enTérm. | Y37: TOTAL PENALIZAC.
C39: I | G39: =Y20 -> 16.043 | J39: =IF(D39="","",(I39-H39)*24) ->  | K39: =IF(D39="","",ROUND((I39-H39)*24*60,0)) ->  | M39: =IF(D39="","",IF(OR(L39="P",L39="RP"),"--","NO")) ->  | N39: 50 | O39: =IF(L39="P",G39*N39*ROUND(K39/60,2)*0.1,"--") -> -- | P39: =IF(AND(L39="F",M39="NO"),G39*N39,"--") -> -- | Q39: =IF(L39="F",G39*N39*ROUND(K39/60,2),"--") -> -- | V39: =IF(L39="RF",G39*N39*ROUND(K39/60,2),"--") -> -- | X39: =IF(D39="","","SI") ->  | Y39: =IF(D39="","",SUM(O39:V39)*IF(X39="SI",1,2)*IF(F39="500/220",0,1)) -> 
Y41: =SUM(Y39:Y40) -> 0
H42: SM= | I42: =Y35+Y41 -> 380527.7177
C44: c) RM : es la remuneración que mensualmente recibiría el Transportista Independiente, si su servicio fuera valorizado conforme al régimen remuneratorio que se aplica a la Concesionaria.
D46: Cargo por Capacidad | E46: kV | F46: km | I46: RM por Cap. Transporte | K46: RM por E. E. T. | X46: TOTAL
D48: PASO DE LOS LIBRES - MONTE CASEROS | E48: 132 | F48: 100.7 | I48: =F48*$J$19*$E$18/100 -> 250496.2447 | K48: 57951 | M48: ="(DTE "&[1]DATO!$G$14&[1]DATO!$H$14&")" -> (DTE 0516) | X48: =I48+I52 -> 262047.2047
D50: E.T. | E50: kV | F50: SALIDA | G50: SALIDA | I50: RM por Conexión
D52: PASO DE LOS LIBRES | E52: 132 | F52: INTERRUPTOR TRAFO 1 | I52: =Y20*E18 -> 11550.96
H55: RM = | I55: =X48+I52 -> 273598.1647 | M55: RM * = | X55: 114908.4209
C57: d) CS: Es el cargo por Supervisión de la Operación que la Transportista percibe por supervisar la operación y mantenimiento del Transportista Independiente.
D59: Cargo por Supervisión afectado a la sanción | H59: CS = | I59: =E19*X55 -> 2872.710522 | L59: RM* = VALOR EMPLEADO PARA CALCULAR CS
C61: e) SANCIÓN
D62: Sanción Calculada | E62: =10*Y35*I59/I55 -> 39954.43389
D64: TOTAL A PENALIZAR A TRANSNEA S.A. POR SUPERVISIÓN A D.P.E.C.
H66: SANCIÓN = | I66: =IF(E62>3*I59,3*I59,$E$62) -> 8618.131566

Sheet DATO
A1: Mes | B1: Mes | C1: Dia | D1: Año
A2: enero | B2: 01 | C2: 31 | D2: 2006
A3: febrero | B3: 02 | C3: =IF(MOD(E14,4)=0,29,28) -> 29 | D3: =+D2+1 -> 2007
A4: marzo | B4: 03 | C4: 31 | D4: =+D3+1 -> 2008
A5: abril | B5: 04 | C5: 30 | D5: =+D4+1 -> 2009
A6: mayo | B6: 05 | C6: 31 | D6: 2010
A7: junio | B7: 06 | C7: 30 | D7: 2011
A8: julio | B8: 07 | C8: 31 | D8: 2012
A9: agosto | B9: 08 | C9: 31 | D9: 2013
A10: septiembre | B10: 09 | C10: 30 | D10: 2014
A11: octubre | B11: 10 | C11: 31 | D11: 2015
A12: noviembre | B12: 11 | C12: 30 | D12: 2016
A13: diciembre | B13: 12 | C13: 31 | I13: Total
A14: 11 | B14: 6 | C14: =CELL("CONTENIDO",OFFSET(A1,B14,0)) -> junio | D14: =CELL("CONTENIDO",OFFSET(C1,B14,0)) -> 30 | E14: =CELL("CONTENIDO",OFFSET(D1,A14,0)) -> 2016 | F14: ="Desde el 01 al " & D14 & " de " & C14 & " de " & E14 -> Desde el 01 al 30 de junio de 2016 | G14: =CELL("CONTENIDO",OFFSET(B1,B14,0)) -> 06 | H14: =RIGHT(E14,2) -> 16 | I14: B14
B15: ="\\rugor\files\Transporte\Transporte\AA PROCESO AUT ARCHIVOS J\TRANSNEA\" &E14 -> \\rugor\files\Transporte\Transporte\AA PROCESO AUT ARCHIVOS J\TRANSNEA\2016 | G15: ="J"&G14&H14&"NEA" -> J0616NEA
B16: ="\\rugor\files\Transporte\transporte\AA PROCESO AUT\INTERCAMBIO\" &H14&G14 -> \\rugor\files\Transporte\transporte\AA PROCESO AUT\INTERCAMBIO\1606
A17: Hoja | B17: FilaInicio | C17: FilasPlantilla | D17: Columnas | E17: NombreHoja | F17: OrigenDeDatos | G17: Col00 | H17: Col01 | I17: Col02 | J17: Col03 | K17: Col04 | L17: Col05 | M17: Col06 | N17: Col07 | O17: Col08 | P17: Col09 | Q17: Col10 | R17: Col11 | S17: Col12 | T17: Col13 | U17: Col14 | V17: Col15 | W17: FILHTOTAL | X17: COLHTOTAL | Y17: FILHCALC | Z17: COLHCALC | AA17: FILTRANSP | AB17: COLTRANSP | AC17: COL TSAL
A18: MODELO L | B18: 23 | C18: 20 | D18: 11 | E18: ="LI-" & $G$14 -> LI-06 | F18: TRANSNEA_INDISPONIBILIDADES_LINEAS_TRANSNEA.XLS | G18: 3 | H18: 5 | I18: 4 | J18: 6 | K18: 7 | L18: 8 | M18: 0 | N18: 10 | O18: 11 | P18: 14 | Q18: 0 | R18: 26 | S18: 0 | T18: 0 | U18: 0 | V18: 0 | W18: 20 | X18: 9 | Y18: 44 | Z18: 27 | AA18: 21 | AB18: 27 | AC18: 14
A19: MODELO T | B19: 22 | C19: 20 | D19: 13 | E19: ="T-" & $G$14 -> T-06 | F19: TRANSNEA_INDISPONIBILIDADES_TRAFOS_TRANSNEA.XLS | G19: 3 | H19: 5 | I19: 4 | J19: 6 | K19: 7 | L19: 8 | M19: 9 | N19: 11 | O19: 12 | P19: 15 | Q19: 16 | R19: 18 | S19: 28 | T19: 17 | U19: 0 | V19: 0 | W19: 28 | X19: 9 | Y19: 43 | Z19: 29 | AA19: 20 | AB19: 29 | AC19: 15
A20: MODELO S | B20: 22 | C20: 20 | D20: 10 | E20: ="SA-" & $G$14 -> SA-06 | F20: TRANSNEA_INDISPONIBILIDADES_SALIDAS_TRANSNEA.XLS | G20: 3 | H20: 5 | I20: 4 | J20: 6 | K20: 7 | L20: 8 | M20: 10 | N20: 11 | O20: 14 | P20: 15 | Q20: 21 | R20: 0 | S20: 0 | T20: 0 | U20: 0 | V20: 0 | W20: 32 | X20: 9 | Y20: 43 | Z20: 22 | AA20: 20 | AB20: 22 | AC20: 14
A21: MODELO L DPEC | B21: 23 | C21: 20 | D21: 11 | E21: ="LI-DPEC-" & $G$14 -> LI-DPEC-06 | F21: TRANSNEA_INDISPONIBILIDADES_LINEAS_DPEC.XLS | G21: 3 | H21: 5 | I21: 4 | J21: 6 | K21: 7 | L21: 8 | M21: 0 | N21: 10 | O21: 11 | P21: 14 | Q21: 0 | R21: 26 | S21: 0 | T21: 0 | U21: 0 | V21: 0 | W21: 21 | X21: 9 | Y21: 44 | Z21: 27 | AA21: 21 | AB21: 27 | AC21: 14
A22: MODELO L ENECOR | B22: 23 | C22: 20 | D22: 11 | E22: ="LI-ENECOR-" & $G$14 -> LI-ENECOR-06 | F22: TRANSNEA_INDISPONIBILIDADES_LINEAS_ENECOR.XLS | G22: 3 | H22: 5 | I22: 4 | J22: 6 | K22: 7 | L22: 8 | M22: 0 | N22: 10 | O22: 11 | P22: 14 | Q22: 0 | R22: 26 | S22: 0 | T22: 0 | U22: 0 | V22: 0 | W22: 22 | X22: 9 | Y22: 44 | Z22: 27 | AA22: 21 | AB22: 27 | AC22: 14
A23: MODELO L ELING | B23: 25 | C23: 20 | D23: 11 | E23: ="LI-ELECT-" & $G$14 -> LI-ELECT-06 | F23: TRANSNEA_INDISPONIBILIDADES_LINEAS_ELECTROINGENIERIA.XLS | G23: 3 | H23: 5 | I23: 4 | J23: 6 | K23: 7 | L23: 8 | M23: 0 | N23: 10 | O23: 11 | P23: 14 | Q23: 0 | R23: 26 | S23: 0 | T23: 0 | U23: 0 | V23: 0 | W23: 23 | X23: 9 | Y23: 44 | Z23: 27 | AA23: 21 | AB23: 27 | AC23: 14
A24: MODELO T ELING | B24: 22 | C24: 20 | D24: 13 | E24: ="T-ELECT-" & $G$14 -> T-ELECT-06 | F24: TRANSNEA_INDISPONIBILIDADES_TRAFOS_ELECTROINGENIERIA.XLS | G24: 3 | H24: 5 | I24: 4 | J24: 6 | K24: 7 | L24: 8 | M24: 9 | N24: 11 | O24: 12 | P24: 15 | Q24: 16 | R24: 18 | S24: 28 | T24: 17 | U24: 0 | V24: 0 | W24: 29 | X24: 9 | Y24: 43 | Z24: 29 | AA24: 20 | AB24: 29 | AC24: 15
A25: MODELO S ELING | B25: 22 | C25: 20 | D25: 10 | E25: ="SA-ELECT-" & $G$14 -> SA-ELECT-06 | F25: TRANSNEA_INDISPONIBILIDADES_SALIDAS_ELECTROINGENIERIA.XLS | G25: 3 | H25: 5 | I25: 4 | J25: 6 | K25: 7 | L25: 8 | M25: 10 | N25: 11 | O25: 14 | P25: 15 | Q25: 21 | R25: 0 | S25: 0 | T25: 0 | U25: 0 | V25: 0 | W25: 33 | X25: 9 | Y25: 43 | Z25: 22 | AA25: 20 | AB25: 22 | AC25: 14
A26: SUP-DPEC | B26: 26 | C26: 25 | D26: 11 | E26: SUP-DPEC | F26: TRANSNEA_INDISPONIBILIDADES_LINEAS_DPEC.XLS | G26: 0 | H26: 0 | I26: 0 | J26: 4 | K26: 5 | L26: 6 | M26: 0 | N26: 8 | O26: 9 | P26: 12 | Q26: 0 | R26: 24 | S26: 0 | T26: 0 | U26: 0 | V26: 0 | W26: 0 | X26: 0 | Y26: 0 | Z26: 0 | AA26: 0 | AB26: 0 | AC26: 0
A27: MODELO VST | B27: 19 | C27: 24 | D27: 4 | E27: ="CAUSAS-VST-" & $G$14 -> CAUSAS-VST-06 | F27: TRANSNEA_CAUSAS_VST.XLS | G27: 3 | H27: 4 | I27: 5 | J27: 6 | K27: 7 | L27: 0 | M27: 0 | N27: 0 | O27: 0 | P27: 0 | Q27: 0 | R27: 0 | S27: 0 | T27: 0 | U27: 0 | V27: 0 | W27: 999 | X27: 999 | Y27: 0 | Z27: 0 | AA27: 0 | AB27: 0 | AC27: 0
